Workbook

Sheet DropDown (hidden)
A1: COUNTY | B1: Region | D1: Segments | G1: % Native Taxa | H1: % FLEPPC Taxa | I1: % Sensitive Taxa | J1: Dominant Taxa C of C | L1: Area Units | Q1: Level III | R1: Level III Name | T1: Level IV | U1: Level IV Name | X1: VOB
A2: Alachua | B2: North | D2: 1, 4, 7, 10 | F2: North | G2: (X-62.5)/37.5 | H2: 1-(X/30) | I2: X/27.78 | J2: X/7.91 | L2: km2 | O2: 65-Southeastern Plains | P2: t2:u12 | Q2: 65 | R2: Southeastern Plains | T2: 65f | U2: Southern Pine Plains and Hills | X2: 20 | AA2: native taxa | AB2: flnative | AC2: 1
A3: Baker | B3: North | D3: 2, 5, 8, 11 | F3: South | G3: (X-66.67)/25.89 | H3: 1-(X/30) | I3: X/20 | J3: X/7.0 | L3: hectares | O3: 75-Southern Coastal Plain | P3: t13:u23 | Q3: 65 | R3: Southeastern Plains | T3: 65g | U3: Dougherty Plain | X3: 19 | AC3: wetlansstatus | AD3: 3, 4, 5, 8, 9
A4: Bay | B4: North | D4: 3, 6, 9, 12 | L4: m2 | O4: 76-Southern Florida Coastal Plain | P4: t24:u34 | Q4: 65 | R4: Southeastern Plains | T4: 65h | U4: Tifton Upland | X4: 18 | AB4: or | AC4: taxia ID | AD4: 18036
A5: Bradford | B5: North | D5: Required | L5: mi2 | Q5: 65 | R5: Southeastern Plains | T5: 65o | U5: Tallahasee Hills/Valdosta Limesink | X5: 17
A6: Brevard | B6: Must Enter Lattitiude | F6: Metric | G6: ='LVI Calculator'!B15 -> Segment 1 | H6: ='LVI Calculator'!C15 -> Segment 4 | I6: ='LVI Calculator'!D15 -> Segment 7 | J6: ='LVI Calculator'!E15 -> Segment 10 | L6: acres | Q6: 65 | R6: Southeastern Plains | T6: 65p | U6: Southeastern Floodplains and Low Terraces | X6: 16 | AB6: or | AC6: growthhabit | AD6: 7
A7: Broward | B7: South | E7: North | F7: % Native Taxa | G7: =('LVI Calculator'!B5-62.5)/37.5 -> 0.5789473684 | H7: =('LVI Calculator'!C5-62.5)/37.5 -> 0.7777777778 | I7: =('LVI Calculator'!D5-62.5)/37.5 -> 0.6444444444 | J7: =('LVI Calculator'!E5-62.5)/37.5 -> 0.7037037037 | L7: ft2 | Q7: 75 | R7: Southern Coastal Plain | T7: - | U7: - | X7: 15
A8: Calhoun | B8: North | E8: South | F8: % Native Taxa | G8: =('LVI Calculator'!B5-66.67)/25.89 -> 0.6775019821 | H8: =('LVI Calculator'!C5-66.67)/25.89 -> 0.9654950431 | I8: =('LVI Calculator'!D5-66.67)/25.89 -> 0.7723702845 | J8: =('LVI Calculator'!E5-66.67)/25.89 -> 0.8582035106 | Q8: 75 | R8: Southern Coastal Plain | T8: - | U8: - | X8: 14
A9: Charlotte | B9: South | Q9: 75 | R9: Southern Coastal Plain | T9: - | U9: - | X9: 13
A10: Citrus | B10: North | E10: North | F10: % FLEPPC Taxa | G10: =1-('LVI Calculator'!B6/30) -> 0.4736842105 | H10: =1-('LVI Calculator'!C6/30) -> 0.7222222222 | I10: =1-('LVI Calculator'!D6/30) -> 0.5555555556 | J10: =1-('LVI Calculator'!E6/30) -> 0.6296296296 | Q10: 75 | R10: Southern Coastal Plain | T10: - | U10: - | X10: 12
A11: Clay | B11: North | E11: South | F11: % FLEPPC Taxa | G11: =1-('LVI Calculator'!B6/30) -> 0.4736842105 | H11: =1-('LVI Calculator'!C6/30) -> 0.7222222222 | I11: =1-('LVI Calculator'!D6/30) -> 0.5555555556 | J11: =1-('LVI Calculator'!E6/30) -> 0.6296296296 | L11: =IF('Site Info'!B23="65-Southeastern Plains",INDIRECT(DropDown!P2),IF('Site Info'!B23="75-Southern Coastal Plain",INDIRECT(DropDown!P3),INDIRECT(DropDown!P4))) -> 76a | M11: Everglades | N11: =L11&" - "&M11 -> 76a - Everglades | Q11: 75 | R11: Southern Coastal Plain | T11: - | U11: - | X11: 11
A12: Collier | B12: South | L12: 76b | M12: Big Cypress | N12: =L12&" - "&M12 -> 76b - Big Cypress | Q12: 75 | R12: Southern Coastal Plain | T12: - | U12: - | X12: 10
A13: Columbia | B13: North | E13: North | F13: % Sensitive Taxa | G13: ='LVI Calculator'!B7/27.78 -> 0.1894585275 | H13: ='LVI Calculator'!C7/27.78 -> 0.5999520038 | I13: ='LVI Calculator'!D7/27.78 -> 0.2399808015 | J13: ='LVI Calculator'!E7/27.78 -> 0.3999680026 | L13: 76c | M13: Miami Ridge/Atlantic Coastal Strip | N13: 76c - Miami Ridge/Atlantic Coastal Strip | Q13: 75 | R13: Southern Coastal Plain | T13: 75a | U13: Gulf Coast Flatwoods | X13: 9
A14: Dade | B14: South | E14: South | F14: % Sensitive Taxa | G14: ='LVI Calculator'!B7/20 -> 0.2631578947 | H14: ='LVI Calculator'!C7/20 -> 0.8333333333 | I14: ='LVI Calculator'!D7/20 -> 0.3333333333 | J14: ='LVI Calculator'!E7/20 -> 0.5555555556 | L14: 76d | M14: Southern Coast and Islands | N14: 76d - Southern Coast and Islands | Q14: 75 | R14: Southern Coastal Plain | T14: 75b | U14: Southwestern Florida Flatwoods | X14: 8
A15: DeSoto | B15: South | L15: - | M15: - | N15: - - - | Q15: 75 | R15: Southern Coastal Plain | T15: 75c | U15: Central Florida Ridges and Uplands | X15: 7
A16: Dixie | B16: North | E16: North | F16: Dominant Taxa C of C | G16: =IF('LVI Calculator'!B8="","",'LVI Calculator'!B8/7.91) -> 0 | H16: =IF('LVI Calculator'!C8="","",'LVI Calculator'!C8/7.91) -> 0 | I16: =IF('LVI Calculator'!D8="","",'LVI Calculator'!D8/7.91) -> 0 | J16: =IF('LVI Calculator'!E8="","",'LVI Calculator'!E8/7.91) -> 0 | L16: - | M16: - | N16: - - - | Q16: 75 | R16: Southern Coastal Plain | T16: 75d | U16: Eastern Florida Flatwoods | X16: 6
A17: Duval | B17: North | E17: South | F17: Dominant Taxa C of C | G17: =IF('LVI Calculator'!B8="","",'LVI Calculator'!B8/7) -> 0 | H17: =IF('LVI Calculator'!C8="","",'LVI Calculator'!C8/7) -> 0 | I17: =IF('LVI Calculator'!D8="","",'LVI Calculator'!D8/7) -> 0 | J17: =IF('LVI Calculator'!E8="","",'LVI Calculator'!E8/7) -> 0 | L17: - | M17: - | N17: - - - | Q17: 75 | R17: Southern Florida Coastal Plain | T17: 75e | U17: Okefenokee Plains | X17: 5
A18: Escambia | B18: North | L18: - | M18: - | N18: - - - | Q18: 76 | R18: Southern Florida Coastal Plain | T18: 75f | U18: Sea Island Flatwoods | X18: 4
A19: Flagler | B19: North | L19: - | M19: - | N19: - - - | Q19: 76 | R19: Southern Florida Coastal Plain | T19: 75g | U19: Okefenokee Swamps | X19: 3
A20: Franklin | B20: North | L20: - | M20: - | N20: - - - | Q20: 76 | R20: Southern Florida Coastal Plain | T20: 75i | U20: Floodplains and Low Terraces | X20: 2
A21: Gadsden | B21: North | L21: - | M21: - | N21: - - - | Q21: 76 | R21: Southern Florida Coastal Plain | T21: 75j | U21: Sea Islands/Coastal Marsh | X21: 1
A22: Gilchrist | B22: North | Q22: - | R22: - | T22: 75k | U22: Gulf Barrier Islands and Coastal Marshes | X22: -
A23: Glades | B23: South | T23: 75l | U23: Big Bend Coastal Marsh
A24: Gulf | B24: North | T24: 76a | U24: Everglades
A25: Hamilton | B25: North | T25: 76b | U25: Big Cypress
A26: Hardee | B26: South | T26: 76c | U26: Miami Ridge/Atlantic Coastal Strip
A27: Hendry | B27: South | T27: 76d | U27: Southern Coast and Islands
A28: Hernando | B28: North | T28: - | U28: -
A29: Highlands | B29: South | T29: - | U29: -
A30: Hillsborough | B30: South | T30: - | U30: -
A31: Holmes | B31: North | T31: - | U31: -
A32: Indian River | B32: South | T32: - | U32: -
A33: Jackson | B33: North | T33: - | U33: -
A34: Jefferson | B34: North | T34: - | U34: -
A35: Lafayette | B35: North
A36: Lake | B36: North
A37: Lee | B37: South
A38: Leon | B38: North
A39: Levy | B39: North
A40: Liberty | B40: North
A41: Madison | B41: North
A42: Manatee | B42: South
A43: Marion | B43: North
A44: Martin | B44: South
A45: Monroe | B45: South
A46: Nassau | B46: North
A47: Okaloosa | B47: North
A48: Okeechobee | B48: South
A49: Orange | B49: North
A50: Osceola | B50: South
A51: Palm Beach | B51: South
A52: Pasco | B52: North
A53: Pinellas | B53: South
A54: Polk | B54: South
A55: Putnam | B55: North
A56: Santa Rosa | B56: North
A57: Sarasota | B57: South
A58: Seminole | B58: North
A59: St. Johns | B59: North
A60: St. Lucie | B60: South
A61: Sumter | B61: North
A62: Suwannee | B62: North
A63: Taylor | B63: North
A64: Union | B64: North
A65: Volusia | B65: North
A66: Wakulla | B66: North
A67: Walton | B67: North
A68: Washington | B68: North
A69: Required

Sheet Read Me
A1: LAKE VEGETATION INDEX (LVI) CALCULATOR
A2: Based on FDEP-SOP-003/11 (Revision Date January 2017), LVI 2200 "Lake Vegetation Index Determination" Calculator Created July 2024
A3: Definition: The LVI is a regional multimetric biological assessment of lake health using the aquatic plant community to determines how closely a lake’s flora resembles that of an undisturbed lake. The LVI field method and calculations are described in “Assessing the Biological Condition of Florida Lakes: Development of the Lake Vegetation Index (LVI), 2007 Fore, Leska S.,” with updates in the calculations described in “Development of Aquatic Life Use Support Attainment Thresholds for Florida’s Stream Condition Index and Lake Vegetation Index, DEP-SAS-003/11.” All LVI sampling and analysis shall be conducted according to the requirements of this LVI method and the LVI Primer (Sampling and Use of the Lake Vegetation Index (LVI) for Assessing Lake Plant Communities in Florida: A Primer [DEP-SAS-002/11; May 20, 2026]). In order to submit LVI data to DEP, sampling teams must demonstrate competency per the requirements in LVI 1200. All team members must take and pass the LVI method test, and pass the team testing exercise. Each team shall contain at least one individual who maintains “pass status” for the plant identification test per LVI 1200. Sampling for the LVI should be conducted from April 1 to November 30 in the South LVI region and May 1 to October 31 in the North LVI region. Each macrophyte taxon observed in each of four (4) lake segments is identified to the lowest practical taxonomic level as described in the LVI Primer. Those data are then entered on the LVI Taxa List tab of the calculator to calculate the LVI.
A5: Index Calculation: The LVI has four (4) metrics: 1) Percent Native taxa 2) Percent FISC Category 1 Invasive Species 3) Percent Sensitive Taxa 4) Coefficient of Conservatism (C of C) score for Dominant Taxa
A6: A score for each of the four metrics is calculated for each of the four lake segments based on the macrophyte taxa present in the segment. The four metric scores for each segment are averaged to give a LVI score for the segment. The four segment LVI scores are then averaged to get the final LVI score for the lake.
A7: The equations used to calculate the individual LVI metric scores are regionalized. Therefore, the county and possibly latitude must be specified in the calculator to determine the appropriate region and obtain accurate results.
A9: More details concerning the LVI and its calculation can be found in SOP LVI 2000 (wihtin LVI 1000).
A11: To use the calculator, go to the "Site Info" tab (press button on right or select tab at bottom) and enter the requested information about the lake sampled. After you have entered the Site Information, go to the "LVI Taxa List" tab and follow the instructions at the top of the sheet to select taxa found in each lake segment.

Sheet Site Info
A1: Please Enter Site Information in Shaded Fields Below As Described
A2: Lake Name | B2: Low Lake | E2: Geographic Coordinate Converter
A3: Sampling Entity | B3: Northeast District Biologists | E3: x/y | F3: Degrees | G3: Minutes | H3: Seconds | J3: Decimal Degrees
A4: WIN Organization ID | B4: 21FLA | E4: LATITUDE | F4: 30 | G4: 13 | H4: 18 | J4: =IF(F4<0,(F4-(G4/60)-(H4/3600)),(1*(F4+(G4/60)+(H4/3600)))) -> 30.22166667
A5: WIN Station ID | B5: 21020065 | E5: LONGITUDE | F5: 82 | G5: 50 | H5: 10 | J5: =IF(F5<0,(F5-(G5/60)-(H5/3600)),(-1*(F5+(G5/60)+(H5/3600)))) -> -82.83611111
A6: WIN Sampling Location Description | B6: LOWREF
A7: Field ID | D7: Optional
A8: County | B8: Dixie | D8: Dropdown Menu
A9: WBID | B9: 3496A
A10: Lake Size (area) | D10: (Optional)
A11: Lake Size (units) | D11: (Optional) Dropdown Menu
A12: Longitude (Decimal Degrees) | B12: -82.836306
A13: Latitude (Decimal Degrees) | B13: 30.221694 | D13: Required for LVI Calculation
A14: LVI Region | B14: =IF(B8="","Must Enter County",IF(AND(B8="Brevard",OR(B13=0,ISBLANK(B13),ISTEXT(B13))),"Must Enter Lattitiude",IF(AND(B8="Brevard",B13>=28.348),"North",IF(AND(B8="Brevard",B13<28.348),"South",VLOOKUP(B8,DropDown!A2:B68,2,FALSE))))) -> North | D14: Autopopulated
A15: Sample Date | B15: 2025-07-29
A16: Sample Time
A17: Sampler 1 Name (Check box to right if proficient* in LVI method) | B17: Test Testerson | C17: TRUE
A18: Sampler 2 Name (Check box to right if proficient* in LVI method) | C18: FALSE
A19: Survey/Project | B19: TEST 1
A23: Level III Eco Region | D23: (Optional)
A24: Level IV Eco Region | D24: (Optional)
A25: Level IV Eco Region Name | B25: =IF(ISBLANK(B24),"",RIGHT(B24,LEN(B24)-6)) ->  | D25: (Optional) Autopopulated
A26: Analyst (Person entering data)
A28: *Proficient: An individual that is in pass status with DEP for the LVI method. Pass status required passing the infield team testing every 2 years and passing the online plant test annually.
A29: Check Proficiency status at the FDP Bioassessment Proficiency Registry Page.
A31: Per DEP-SOP-003/11, LVI 1000. Lake Vegetation Index Determination. Effective date May 20, 2026.
A32: Per DEP-SAS-002/11, Sampling and Use of the Lake Vegetation Index (LVI) for Assessing Lake Plant Communities in Florida: A Primer, May 20, 2026.

Sheet LVI Taxa List
A1: LAKE VEGETATION INDEX (LVI) CALCULATOR Based on FDEP-SOP-002/01, LVI 2200 Vegetation Index Created July 1, 2024
A2: 1) Start by pressing the "Clear Previous Data Entries" button to clear all data previously entered and taxa selected.
A3: 2) Select lake segments sampled. Other site information automatically copied from Site Info tab.
A4: 3) Then for each of the four lake segments sampled, select all macrophyte taxa present in the segment by entering "D" to denote a Dominant taxa, "C" to denote Co-Dominant Taxa, or a "P" to identify all other taxa present in columns C through F, respectively. Only one dominant or two co-dominant taxa are allowed per segment. (If a Taxa is not found in Column A, also search in the Column B as a synonym.)
A5: 4) When all the appropriate taxa have been identified, press the "Calculate LVI" button to calculate the Lake Vegetation index Value.
A7: Lake Name | B7: Field ID | C7: WIN Organization ID | E7: WIN Station ID | G7: WIN Sampling Location Description | I7: WBID | J7: Sample Date | K7: Notes:
A8: ='Site Info'!B2 -> Low Lake | B8: ='Site Info'!B7 -> 0 | C8: ='Site Info'!B4 -> 21FLA | E8: ='Site Info'!B5 -> 21020065 | G8: ='Site Info'!B6 -> LOWREF | I8: ='Site Info'!B9 -> 3496A | J8: ='Site Info'!B15 -> 2025-07-29
A10: Sampler #1 (* = Proficient) | B10: Sampler #2 (* = Proficient) | C10: Sections Sampled | E10: Longitude (Decimal Degrees) | G10: Latitude (Decimal Degrees) | I10: County | J10: Region
A11: ='Site Info'!B17&IF('Site Info'!C17=TRUE,"*","") -> Test Testerson* | B11: ='Site Info'!B18&IF('Site Info'!C18=TRUE,"*","") ->  | C11: 1, 4, 7, 10 | E11: ='Site Info'!B12 -> -82.836306 | G11: ='Site Info'!B13 -> 30.221694 | I11: ='Site Info'!B8 -> Dixie | J11: =IF(I11=0,"Must Enter County",IF(AND(I11="Brevard",OR(G11=0,ISBLANK(G11),ISTEXT(G11))),"Must Enter Lattitiude",IF(AND(I11="Brevard",G11>=28.348),"North",IF(AND(I11="Brevard",G11<28.348),"South",VLOOKUP(I11,DropDown!A2:B68,2,FALSE))))) -> North
A12: Total Taxa / Dominant Taxa / Co-Dominant Taxa | C12: =SUM(COUNTIFS(C16:C2000,{"p","c","d"}))&" / "& COUNTIFS(C16:C2000,"d")&" / "& COUNTIFS(C16:C2000,"c") -> 19 / 1 / 0 | D12: =SUM(COUNTIFS(D16:D2000,{"p","c","d"}))&" / "& COUNTIFS(D16:D2000,"d")&" / "& COUNTIFS(D16:D2000,"c") -> 12 / 1 / 0 | E12: =SUM(COUNTIFS(E16:E2000,{"p","c","d"}))&" / "& COUNTIFS(E16:E2000,"d")&" / "& COUNTIFS(E16:E2000,"c") -> 15 / 1 / 0 | F12: =SUM(COUNTIFS(F16:F2000,{"p","c","d"}))&" / "& COUNTIFS(F16:F2000,"d")&" / "& COUNTIFS(F16:F2000,"c") -> 18 / 1 / 0 | J12: =IF(AND(J11="North",OR(MONTH(J8)<4,MONTH(J8)>11)),"Sample Date is Outside Index Period for the LVI!",IF(AND(J11="South",OR(MONTH(J8)<5,MONTH(J8)>10)),"Sample Date is Outside Index Period for the LVI!","")) -> 
C13: For each segment below, Use "D" to denote Dominant taxa, "C" to denote Co-Dominant Taxa, and "P" to Identify all other taxa present. | G13: =IF(SUM(G16:G2002)=0,"No Taxa have been Selected", IF(OR(COUNTIFS(C16:C2002,"c")>2,COUNTIFS(C16:C2002,"d")>1,SUM(COUNTIFS(C16:C2002,{"C","d"})>2),AND(COUNTIFS(C16:C2002,"d")>0,COUNTIFS(C16:C2002,"c")>0)),"Too Many Dominant and/or Co-Dominant Taxa Selected in 1st Segment", IF(OR(COUNTIFS(D16:D2002,"c")>2,COUNTIFS(D16:D2002,"d")>1,SUM(COUNTIFS(D16:D2002,{"c","d"})>2),AND(COUNTIFS(D16:D2002,"d")>0,COUNTIFS(D16:D2002,"c")>0)),"Too Many Dominant and/or Co-Dominant Taxa Selected in 2nd Segment", IF(OR(COUNTIFS(E16:E2002,"c")>2,COUNTIFS(E16:E2002,"d")>1,SUM(COUNTIFS(E16:E2002,{"c","d"})>2),AND(COUNTIFS(E16:E2002,"d")>0,COUNTIFS(E16:E2002,"c")>0)),"Too Many Dominant and/or Co-Dominant Taxa Selected in 3rd Segment", IF(OR(COUNTIFS(F16:F2002,"c")>2,COUNTIFS(F16:F2002,"d")>1,SUM(COUNTIFS(F16:F2002,{"c","d"})>2),AND(COUNTIFS(F16:F2002,"d")>0,COUNTIFS(F16:F2002,"c")>0)),"Too Many Dominant and/or Co-Dominant Taxa Selected in 4th Segment",""))))) -> 
A15: Taxon | B15: Synonym(s) | C15: =IF($C$11="1, 4, 7, 10","Segment 1",IF($C$11="2, 5, 8, 11","Segment 2",IF($C$11="3, 6, 9, 12","Segment 3","Select Segments"))) -> Segment 1 | D15: =IF($C$11="1, 4, 7, 10","Segment 4",IF($C$11="2, 5, 8, 11","Segment 5",IF($C$11="3, 6, 9, 12","Segment 6","Select Segments"))) -> Segment 4 | E15: =IF($C$11="1, 4, 7, 10","Segment 7",IF($C$11="2, 5, 8, 11","Segment 8",IF($C$11="3, 6, 9, 12","Segment 9","Select Segments"))) -> Segment 7 | F15: =IF($C$11="1, 4, 7, 10","Segment 10",IF($C$11="2, 5, 8, 11","Segment 11",IF($C$11="3, 6, 9, 12","Segment 12","Select Segments"))) -> Segment 10 | G15: Occurrences | H15: Occurrences of LVI Taxon | I15: C of C Score | J15: FLEPPC Status | K15: Wetland Status | L15: Nativity | M15: FLEPPC Code | N15: Wetland Status Code | O15: TAXAID | P15: FL Native | Q15: Growth Habit | R15: HERB WOOD | T15: Occurrences
A16: Abildgaardia ovata | G16: =SUM(COUNTIFS(C16:F16,{"P","C","D"})) -> 0 | H16: =IF(OR(N16=3,N16=4,N16=5,N16=8,N16=9,Q16=7,O16=18036),G16,0) -> 0 | I16: -9 | J16: Not Listed | K16: FACW | L16: Native | M16: 3 | N16: 4 | O16: 40283 | P16: 1 | Q16: 2 | R16: 1 | T16: >0
A17: Acalypha gracilens | G17: =SUM(COUNTIFS(C17:F17,{"P","C","D"})) -> 0 | H17: 0 | I17: 3.29 | J17: Not Listed | L17: Native | M17: 3 | N17: -9 | O17: 28183 | P17: 1 | R17: 1
A18: Acer | G18: =SUM(COUNTIFS(C18:F18,{"P","C","D"})) -> 0 | H18: 0 | I18: -9 | J18: Not Listed | L18: Native | M18: 3 | N18: 1 | O18: 28727 | P18: 1 | Q18: 6 | R18: 2
A19: Acer barbatum | G19: =SUM(COUNTIFS(C19:F19,{"P","C","D"})) -> 0 | H19: 0 | I19: 7.7 | J19: Not Listed | L19: Native | M19: 3 | N19: 1 | O19: 28759 | P19: 1 | Q19: 6 | R19: 2
A20: Acer rubrum | C20: P | D20: P | E20: P | F20: P | G20: =SUM(COUNTIFS(C20:F20,{"P","C","D"})) -> 4 | H20: 4 | I20: 4.65 | J20: Not Listed | K20: FACW | L20: Native | M20: 3 | N20: 4 | O20: 28728 | P20: 1 | Q20: 6 | R20: 2
A21: Acer saccharinum | G21: =SUM(COUNTIFS(C21:F21,{"P","C","D"})) -> 0 | H21: 0 | I21: 6.89 | J21: Not Listed | K21: OBL | L21: Native | M21: 3 | N21: 5 | O21: 28757 | P21: 1 | Q21: 6 | R21: 2
A22: Acmella | G22: =SUM(COUNTIFS(C22:F22,{"P","C","D"})) -> 0 | H22: 0 | I22: -9 | J22: Not Listed | K22: Var Genus | L22: -9 | M22: 3 | N22: 9 | O22: 10010771 | P22: -9 | Q22: 1 | R22: 1
A23: Acmella oppositifolia | B23: Spilanthes americana | G23: =SUM(COUNTIFS(C23:F23,{"P","C","D"})) -> 0 | H23: 0 | I23: 3 | J23: Not Listed | K23: FAC | L23: Native | M23: 3 | N23: 3 | O23: 10010671 | P23: 1 | Q23: 1 | R23: 1
A24: Acmella oppositifolia repens | G24: =SUM(COUNTIFS(C24:F24,{"P","C","D"})) -> 0 | H24: 0 | I24: 3 | J24: Not Listed | K24: FAC | L24: Native | M24: 3 | N24: 3 | O24: 10016088 | P24: 1 | Q24: 1 | R24: 1
A25: Acrostichum | G25: =SUM(COUNTIFS(C25:F25,{"P","C","D"})) -> 0 | H25: 0 | J25: -9 | L25: -9 | M25: -9 | N25: -9 | O25: 17304 | P25: -9 | Q25: -9 | R25: -9
A26: Acrostichum danaeifolium | G26: =SUM(COUNTIFS(C26:F26,{"P","C","D"})) -> 0 | H26: 0 | I26: 5.79 | J26: Not Listed | K26: OBL | L26: Native | M26: 3 | N26: 5 | O26: 17306 | P26: 1 | Q26: 1 | R26: 1
A27: Aeschynomene | G27: =SUM(COUNTIFS(C27:F27,{"P","C","D"})) -> 0 | H27: 0 | J27: -9 | L27: -9 | M27: -9 | N27: -9 | O27: 25358 | P27: -9 | Q27: -9 | R27: -9
A28: Aeschynomene americana | G28: =SUM(COUNTIFS(C28:F28,{"P","C","D"})) -> 0 | H28: 0 | I28: 2.47 | J28: Not Listed | L28: Native | M28: 3 | N28: 1 | O28: 25360 | P28: 1 | Q28: 1 | R28: 1
A29: Aeschynomene fluitans | G29: =SUM(COUNTIFS(C29:F29,{"P","C","D"})) -> 0 | H29: 0 | I29: -9 | J29: Not Listed | K29: OBL | L29: Exotic | M29: 3 | N29: 8 | O29: 10015748 | P29: 2 | Q29: 1 | R29: 1
A30: Aeschynomene indica | G30: =SUM(COUNTIFS(C30:F30,{"P","C","D"})) -> 0 | H30: 0 | I30: 0.49 | J30: Not Listed | K30: FACW | L30: Exotic | M30: 3 | N30: 4 | O30: 25362 | P30: 2 | Q30: 1 | R30: 1
A31: Agalinis | G31: =SUM(COUNTIFS(C31:F31,{"P","C","D"})) -> 0 | H31: 0 | I31: -9 | J31: Not Listed | L31: Native | M31: 3 | N31: 1 | O31: 33006 | P31: 1 | Q31: 1 | R31: 1
A32: Agalinis fasciculata | G32: =SUM(COUNTIFS(C32:F32,{"P","C","D"})) -> 0 | H32: 0 | I32: 4.17 | J32: Not Listed | K32: FACW | L32: Native | M32: 3 | N32: 4 | O32: 33021 | P32: 1 | Q32: 1 | R32: 1
A33: Agalinis filifolia | G33: =SUM(COUNTIFS(C33:F33,{"P","C","D"})) -> 0 | H33: 0 | I33: 6.69 | J33: Not Listed | K33: UPL | L33: Native | M33: 3 | N33: 2 | O33: 33023 | P33: 1 | Q33: 1 | R33: 1
A34: Agalinis linifolia | G34: =SUM(COUNTIFS(C34:F34,{"P","C","D"})) -> 0 | H34: 0 | I34: 7.04 | J34: Not Listed | K34: OBL | L34: Native | M34: 3 | N34: 5 | O34: 33028 | P34: 1 | Q34: 1 | R34: 1
A35: Agalinis obtusifolia | G35: =SUM(COUNTIFS(C35:F35,{"P","C","D"})) -> 0 | H35: 0 | I35: 6.5 | J35: Not Listed | L35: Native | M35: 3 | N35: -9 | O35: 33029 | P35: 1 | R35: 1
A36: Agarista populifolia | G36: =SUM(COUNTIFS(C36:F36,{"P","C","D"})) -> 0 | H36: 0 | I36: 7.7 | J36: Not Listed | K36: FACW | L36: Native | M36: 3 | N36: 4 | O36: 23624 | P36: 1 | Q36: 4 | R36: 2
A37: Albizia | G37: =SUM(COUNTIFS(C37:F37,{"P","C","D"})) -> 0 | H37: 0 | I37: -9 | J37: Split Genus | L37: -9 | M37: 4 | N37: 1 | O37: 26448 | P37: -9 | Q37: 6 | R37: 2
A38: Albizia julibrissin | G38: =SUM(COUNTIFS(C38:F38,{"P","C","D"})) -> 0 | H38: 0 | I38: 0 | J38: Category 1 | K38: UPL | L38: Exotic | M38: 1 | N38: 2 | O38: 26449 | P38: 2 | Q38: 6 | R38: 2
A39: Aleurites | G39: =SUM(COUNTIFS(C39:F39,{"P","C","D"})) -> 0 | H39: 0 | I39: -9 | J39: Split Genus | L39: -9 | M39: 4 | N39: 1 | O39: 28206 | P39: -9 | Q39: 6 | R39: 2
A40: Aleurites fordii | G40: =SUM(COUNTIFS(C40:F40,{"P","C","D"})) -> 0 | H40: 0 | I40: 0 | J40: Category 2 | L40: Exotic | M40: 2 | N40: 1 | O40: 28207 | P40: 2 | Q40: 6 | R40: 2
A41: Alnus serrulata | G41: =SUM(COUNTIFS(C41:F41,{"P","C","D"})) -> 0 | H41: 0 | I41: 5.5 | J41: Not Listed | K41: OBL | L41: Native | M41: 3 | N41: 5 | O41: 19468 | P41: 1 | Q41: 6 | R41: 2
A42: Alocasia | G42: =SUM(COUNTIFS(C42:F42,{"P","C","D"})) -> 0 | H42: 0 | I42: -9 | J42: Not Listed | L42: -9 | M42: 3 | N42: 1 | O42: 42556 | P42: -9 | Q42: 1 | R42: 1
A43: Alternanthera | G43: =SUM(COUNTIFS(C43:F43,{"P","C","D"})) -> 0 | H43: 0 | J43: -9 | L43: -9 | M43: -9 | N43: -9 | O43: 20763 | P43: -9 | Q43: -9 | R43: -9
A44: Alternanthera philoxeroides | G44: =SUM(COUNTIFS(C44:F44,{"P","C","D"})) -> 0 | H44: 0 | I44: 0 | J44: Category 2 | K44: OBL | L44: Exotic | M44: 2 | N44: 5 | O44: 20770 | P44: 2 | Q44: 1 | R44: 1
A45: Alternanthera sessilis | B45: Alternanthera tenella | G45: =SUM(COUNTIFS(C45:F45,{"P","C","D"})) -> 0 | H45: 0 | I45: 0.11 | J45: Not Listed | K45: OBL | L45: Exotic | M45: 3 | N45: 5 | O45: 20773 | P45: 2 | Q45: 1 | R45: 1
A46: Amaranthus | G46: =SUM(COUNTIFS(C46:F46,{"P","C","D"})) -> 0 | H46: 0 | I46: -9 | J46: Not Listed | L46: -9 | M46: 3 | N46: -9 | O46: 20715 | P46: -9 | Q46: 1 | R46: 1
A47: Amaranthus australis | G47: =SUM(COUNTIFS(C47:F47,{"P","C","D"})) -> 0 | H47: 0 | I47: 1 | J47: Not Listed | K47: OBL | L47: Native | M47: 3 | N47: 5 | O47: 20721 | P47: 1 | Q47: 1 | R47: 1
A48: Amaranthus blitum | G48: =SUM(COUNTIFS(C48:F48,{"P","C","D"})) -> 0 | H48: 0 | I48: 0 | J48: Not Listed | L48: Exotic | M48: 3 | N48: -9 | O48: 10007675 | P48: 2 | R48: 1
A49: Amaranthus spinosus | G49: =SUM(COUNTIFS(C49:F49,{"P","C","D"})) -> 0 | H49: 0 | I49: 0.04 | J49: Not Listed | L49: Exotic | M49: 3 | N49: 1 | O49: 20748 | P49: 2 | Q49: 1 | R49: 1
A50: Amaroucium | G50: =SUM(COUNTIFS(C50:F50,{"P","C","D"})) -> 0 | H50: 0 | J50: -9 | L50: -9 | M50: -9 | N50: -9 | O50: 158939 | P50: -9 | Q50: -9 | R50: -9
A51: Ambrosia | G51: =SUM(COUNTIFS(C51:F51,{"P","C","D"})) -> 0 | H51: 0 | J51: -9 | L51: -9 | M51: -9 | N51: -9 | O51: 36495 | P51: -9 | Q51: -9 | R51: -9
A52: Ambrosia artemisiifolia | G52: =SUM(COUNTIFS(C52:F52,{"P","C","D"})) -> 0 | H52: 0 | I52: 0.95 | J52: Not Listed | L52: Native | M52: 3 | N52: 1 | O52: 36496 | P52: 1 | Q52: 1 | R52: 1
A53: Ammannia | G53: =SUM(COUNTIFS(C53:F53,{"P","C","D"})) -> 0 | H53: 0 | I53: -9 | J53: Not Listed | K53: OBL | L53: Native | M53: 3 | N53: 5 | O53: 27090 | P53: 1 | Q53: 1 | R53: 1
A54: Ammannia coccinea | G54: =SUM(COUNTIFS(C54:F54,{"P","C","D"})) -> 0 | H54: 0 | I54: 5.06 | J54: Not Listed | K54: OBL | L54: Native | M54: 3 | N54: 5 | O54: 27091 | P54: 1 | Q54: 1 | R54: 1
A55: Ammannia latifolia | G55: =SUM(COUNTIFS(C55:F55,{"P","C","D"})) -> 0 | H55: 0 | I55: 4.55 | J55: Not Listed | K55: OBL | L55: Native | M55: 3 | N55: 5 | O55: 27092 | P55: 1 | Q55: 1 | R55: 1
A56: Amorpha | G56: =SUM(COUNTIFS(C56:F56,{"P","C","D"})) -> 0 | H56: 0 | I56: -9 | J56: Not Listed | K56: Var Genus | L56: -9 | M56: 3 | N56: 9 | O56: 25367 | P56: -9 | Q56: 5 | R56: 3
A57: Amorpha fruticosa | G57: =SUM(COUNTIFS(C57:F57,{"P","C","D"})) -> 0 | H57: 0 | I57: 4.31 | J57: Not Listed | K57: FACW | L57: Native | M57: 3 | N57: 4 | O57: 25368 | P57: 1 | Q57: 4 | R57: 2
A58: Ampelopsis | G58: =SUM(COUNTIFS(C58:F58,{"P","C","D"})) -> 0 | H58: 0 | J58: -9 | L58: -9 | M58: -9 | N58: -9 | O58: 28630 | P58: -9 | Q58: -9 | R58: -9
A59: Ampelopsis arborea | G59: =SUM(COUNTIFS(C59:F59,{"P","C","D"})) -> 0 | H59: 0 | I59: 3.25 | J59: Not Listed | L59: Native | M59: 3 | N59: 1 | O59: 28631 | P59: 1 | Q59: 7 | R59: 2
A60: Amphicarpum muhlenbergianum | B60: Amphicarpum floridanum | G60: =SUM(COUNTIFS(C60:F60,{"P","C","D"})) -> 0 | H60: 0 | I60: 5.7 | J60: Not Listed | K60: FACW | L60: Native | M60: 3 | N60: 4 | O60: 41386 | P60: 1 | Q60: 2 | R60: 1
A61: Andropogon | G61: =SUM(COUNTIFS(C61:F61,{"P","C","D"})) -> 0 | H61: 0 | I61: -9 | J61: Not Listed | K61: Var Genus | L61: Native | M61: 3 | N61: 9 | O61: 40450 | P61: 1 | Q61: 2 | R61: 1
A62: Andropogon glomeratus | G62: =SUM(COUNTIFS(C62:F62,{"P","C","D"})) -> 0 | H62: 0 | I62: 3 | J62: Not Listed | K62: FACW | L62: Native | M62: 3 | N62: 4 | O62: 40454 | P62: 1 | Q62: 2 | R62: 1
A63: Andropogon gyrans | G63: =SUM(COUNTIFS(C63:F63,{"P","C","D"})) -> 0 | H63: 0 | I63: 6.07 | J63: Not Listed | K63: FAC | L63: Native | M63: 3 | N63: 3 | O63: 10008711 | P63: 1 | Q63: 2 | R63: 1
A64: Andropogon gyrans stenophyllus | B64: Andropogon gyrans stenophyllus (Andropogon perangustatus) | G64: =SUM(COUNTIFS(C64:F64,{"P","C","D"})) -> 0 | H64: 0 | I64: 6.07 | J64: Not Listed | K64: FAC | L64: Native | M64: 3 | N64: 3 | O64: 10008712 | P64: 1 | R64: 1
A65: Andropogon mohrii | B65: Andropogon liebmanii | G65: =SUM(COUNTIFS(C65:F65,{"P","C","D"})) -> 0 | H65: 0 | I65: 7 | J65: Not Listed | K65: FACW | L65: Native | M65: 3 | N65: 4 | O65: 40464 | P65: 1 | Q65: 2 | R65: 1
A66: Andropogon virginicus | G66: =SUM(COUNTIFS(C66:F66,{"P","C","D"})) -> 0 | H66: 0 | I66: 3 | J66: Not Listed | K66: FAC | L66: Native | M66: 3 | N66: 3 | O66: 40456 | P66: 1 | Q66: 2 | R66: 1
A67: Annona | G67: =SUM(COUNTIFS(C67:F67,{"P","C","D"})) -> 0 | H67: 0 | J67: -9 | L67: -9 | M67: -9 | N67: -9 | O67: 18095 | P67: -9 | Q67: -9 | R67: -9
A68: Annona glabra | G68: =SUM(COUNTIFS(C68:F68,{"P","C","D"})) -> 0 | H68: 0 | I68: 7 | J68: Not Listed | K68: OBL | L68: Native | M68: 3 | N68: 5 | O68: 18101 | P68: 1 | Q68: 6 | R68: 2
A69: Apios | G69: =SUM(COUNTIFS(C69:F69,{"P","C","D"})) -> 0 | H69: 0 | J69: -9 | L69: -9 | M69: -9 | N69: -9 | O69: 25389 | P69: -9 | Q69: -9 | R69: -9
A70: Apios americana | G70: =SUM(COUNTIFS(C70:F70,{"P","C","D"})) -> 0 | H70: 0 | I70: 3.85 | J70: Not Listed | L70: Native | M70: 3 | N70: 1 | O70: 25390 | P70: 1 | Q70: 1 | R70: 1
A71: Ardisia | G71: =SUM(COUNTIFS(C71:F71,{"P","C","D"})) -> 0 | H71: 0 | I71: -9 | J71: Split Genus | K71: FAC | L71: -9 | M71: 4 | N71: 3 | O71: 23888 | P71: -9 | Q71: 4 | R71: 2
A72: Ardisia escallonioides | G72: =SUM(COUNTIFS(C72:F72,{"P","C","D"})) -> 0 | H72: 0 | I72: 4.17 | J72: Not Listed | K72: FAC | L72: Native | M72: 3 | N72: 3 | O72: 23889 | P72: 1 | Q72: 6 | R72: 2
A73: Aristida | G73: =SUM(COUNTIFS(C73:F73,{"P","C","D"})) -> 0 | H73: 0 | I73: -9 | J73: Not Listed | K73: Var Genus | L73: Native | M73: 3 | N73: 9 | O73: 41400 | P73: 1 | Q73: 2 | R73: 1
A74: Aristida lanosa | G74: =SUM(COUNTIFS(C74:F74,{"P","C","D"})) -> 0 | H74: 0 | I74: 8.73 | J74: Not Listed | L74: Native | M74: 3 | N74: -9 | O74: 41404 | P74: 1 | R74: 1
A75: Aristida palustris | G75: =SUM(COUNTIFS(C75:F75,{"P","C","D"})) -> 0 | H75: 0 | I75: 8.23 | J75: Not Listed | K75: OBL | L75: Native | M75: 3 | N75: 8 | O75: 10007674 | P75: 1 | R75: 1
A76: Aristida patula | G76: =SUM(COUNTIFS(C76:F76,{"P","C","D"})) -> 0 | H76: 0 | I76: 4.85 | J76: Not Listed | L76: Native | M76: 3 | N76: -9 | O76: 41427 | P76: 1 | R76: 1
A77: Aristida purpurascens | G77: =SUM(COUNTIFS(C77:F77,{"P","C","D"})) -> 0 | H77: 0 | I77: 5.58 | J77: Not Listed | K77: FACW | L77: Native | M77: 3 | N77: 4 | O77: 41428 | P77: 1 | R77: 1
A78: Aristida stricta | G78: =SUM(COUNTIFS(C78:F78,{"P","C","D"})) -> 0 | H78: 0 | I78: 8.67 | J78: Not Listed | K78: FAC | L78: Native | M78: 3 | N78: 3 | O78: 41433 | P78: 1 | Q78: 2 | R78: 1
A79: Arnoglossum | G79: =SUM(COUNTIFS(C79:F79,{"P","C","D"})) -> 0 | H79: 0 | I79: -9 | J79: Not Listed | K79: Var Genus | L79: -9 | M79: 3 | N79: 9 | O79: 36582 | P79: -9 | Q79: 1 | R79: 1
A80: Arnoglossum sulcatum | G80: =SUM(COUNTIFS(C80:F80,{"P","C","D"})) -> 0 | H80: =IF(OR(N80=3,N80=4,N80=5,N80=8,N80=9,Q80=7,O80=18036),G80,0) -> 0 | I80: 7.13 | J80: Not Listed | K80: OBL | L80: Native | M80: 3 | N80: 5 | O80: 36589 | P80: 1 | Q80: 1 | R80: 1
A81: Aronia arbutifolia | G81: =SUM(COUNTIFS(C81:F81,{"P","C","D"})) -> 0 | H81: 0 | I81: 5.2 | J81: Not Listed | K81: FACW | L81: Native | M81: 3 | N81: 4 | O81: 25126 | P81: 1 | Q81: -9 | R81: 2
A82: Arundinaria gigantea | G82: =SUM(COUNTIFS(C82:F82,{"P","C","D"})) -> 0 | H82: 0 | I82: 5.25 | J82: Not Listed | K82: FACW | L82: Native | M82: 3 | N82: 4 | O82: 40477 | P82: 1 | Q82: 2 | R82: 1
A83: Arundo | G83: =SUM(COUNTIFS(C83:F83,{"P","C","D"})) -> 0 | H83: 0 | I83: -9 | J83: Not Listed | K83: FAC | L83: -9 | M83: 3 | N83: 3 | O83: 41449 | P83: -9 | Q83: 2 | R83: 1
A84: Arundo donax | G84: =SUM(COUNTIFS(C84:F84,{"P","C","D"})) -> 0 | H84: 0 | I84: 0 | J84: Not Listed | K84: FAC | L84: Exotic | M84: 3 | N84: 3 | O84: 41450 | P84: 2 | Q84: 2 | R84: 1
A85: Asclepias | G85: =SUM(COUNTIFS(C85:F85,{"P","C","D"})) -> 0 | H85: 0 | J85: -9 | L85: -9 | M85: -9 | N85: -9 | O85: 30240 | P85: -9 | Q85: -9 | R85: -9
A86: Asclepias incarnata | G86: =SUM(COUNTIFS(C86:F86,{"P","C","D"})) -> 0 | H86: 0 | I86: -9 | J86: Not Listed | K86: OBL | L86: Native | M86: 3 | N86: 5 | O86: 30241 | P86: 1 | Q86: 1 | R86: 1
A87: Asclepias lanceolata | G87: =SUM(COUNTIFS(C87:F87,{"P","C","D"})) -> 0 | H87: 0 | I87: 6.73 | J87: Not Listed | K87: OBL | L87: Native | M87: 3 | N87: 5 | O87: 30242 | P87: 1 | R87: 1
A88: Asclepias perennis | G88: =SUM(COUNTIFS(C88:F88,{"P","C","D"})) -> 0 | H88: 0 | J88: Not Listed | K88: OBL | L88: Native | M88: 3 | N88: 5 | O88: 10015848 | P88: 1 | Q88: 1 | R88: 1
A89: Aster | G89: =SUM(COUNTIFS(C89:F89,{"P","C","D"})) -> 0 | H89: 0 | I89: -9 | J89: Not Listed | K89: Var Genus | L89: Native | M89: 3 | N89: 9 | O89: 35510 | P89: 1 | Q89: 1 | R89: 3
A90: Aster tortifolius | G90: =SUM(COUNTIFS(C90:F90,{"P","C","D"})) -> 0 | H90: 0 | I90: 4.62 | J90: Not Listed | L90: Native | M90: 3 | N90: 1 | O90: 35667 | P90: 1 | Q90: 1 | R90: 1
A91: Avicennia germinans | G91: =SUM(COUNTIFS(C91:F91,{"P","C","D"})) -> 0 | H91: 0 | I91: 4.5 | J91: Not Listed | K91: OBL | L91: Native | M91: 3 | N91: 5 | O91: 32137 | P91: 1 | Q91: 4 | R91: 2
A92: Axonopus | G92: =SUM(COUNTIFS(C92:F92,{"P","C","D"})) -> 0 | H92: 0 | I92: -9 | J92: Not Listed | K92: FAC | L92: -9 | M92: 3 | N92: 3 | O92: 41463 | P92: -9 | Q92: 2 | R92: 1
A93: Axonopus affinis | G93: =SUM(COUNTIFS(C93:F93,{"P","C","D"})) -> 0 | H93: 0 | I93: 1.89 | J93: Not Listed | K93: FAC | L93: Native | M93: 3 | N93: 3 | O93: 41464 | P93: 1 | Q93: 2 | R93: 1
A94: Axonopus furcatus | G94: =SUM(COUNTIFS(C94:F94,{"P","C","D"})) -> 0 | H94: 0 | I94: 2.12 | J94: Not Listed | K94: FAC | L94: Native | M94: 3 | N94: 3 | O94: 41466 | P94: 1 | Q94: 2 | R94: 1
A95: Azolla | G95: =SUM(COUNTIFS(C95:F95,{"P","C","D"})) -> 0 | H95: 0 | J95: Not Listed | K95: OBL | L95: -9 | M95: 3 | N95: 8 | O95: 18006 | P95: -9 | Q95: 1 | R95: 1
A96: Azolla caroliniana | G96: =SUM(COUNTIFS(C96:F96,{"P","C","D"})) -> 0 | H96: 0 | I96: 1.81 | J96: Not Listed | K96: OBL | L96: Native | M96: 3 | N96: 8 | O96: 18008 | P96: 1 | R96: 1
A97: Azolla filiculoides | G97: =SUM(COUNTIFS(C97:F97,{"P","C","D"})) -> 0 | H97: 0 | I97: 1.81 | J97: Not Listed | K97: OBL | L97: Native | M97: 3 | N97: 8 | O97: 18007 | P97: 1 | Q97: 1 | R97: 1
A98: Azolla pinnata | G98: =SUM(COUNTIFS(C98:F98,{"P","C","D"})) -> 0 | H98: 0 | I98: 0 | J98: Not Listed | K98: OBL | L98: Exotic | M98: 3 | N98: 8 | O98: 10016083 | P98: 2 | Q98: 1 | R98: 1
A99: Baccharis | G99: =SUM(COUNTIFS(C99:F99,{"P","C","D"})) -> 0 | H99: 0 | I99: -9 | J99: Not Listed | K99: Var Genus | L99: Native | M99: 3 | N99: 9 | O99: 35681 | P99: 1 | Q99: 4 | R99: 2
A100: Baccharis angustifolia | G100: =SUM(COUNTIFS(C100:F100,{"P","C","D"})) -> 0 | H100: 0 | I100: 4.2 | J100: Not Listed | K100: OBL | L100: Native | M100: 3 | N100: 5 | O100: 35683 | P100: 1 | Q100: 4 | R100: -9
A101: Baccharis glomeruliflora | G101: =SUM(COUNTIFS(C101:F101,{"P","C","D"})) -> 0 | H101: 0 | I101: 3 | J101: Not Listed | K101: FAC | L101: Native | M101: 3 | N101: 3 | O101: 35689 | P101: 1 | Q101: 4 | R101: 2
A102: Baccharis halimifolia | G102: =SUM(COUNTIFS(C102:F102,{"P","C","D"})) -> 0 | H102: 0 | I102: 2.53 | J102: Not Listed | K102: FAC | L102: Native | M102: 3 | N102: 3 | O102: 35682 | P102: 1 | Q102: 4 | R102: 2
A103: Bacopa | G103: =SUM(COUNTIFS(C103:F103,{"P","C","D"})) -> 0 | H103: 0 | I103: -9 | J103: Not Listed | K103: OBL | L103: Native | M103: 3 | N103: 5 | O103: 33037 | P103: 1 | Q103: 1 | R103: 1
A104: Bacopa caroliniana | G104: =SUM(COUNTIFS(C104:F104,{"P","C","D"})) -> 0 | H104: 0 | I104: 4.5 | J104: Not Listed | K104: OBL | L104: Native | M104: 3 | N104: 5 | O104: 33039 | P104: 1 | Q104: 1 | R104: 1
A105: Bacopa inominata | G105: =SUM(COUNTIFS(C105:F105,{"P","C","D"})) -> 0 | H105: 0 | I105: 7.48 | J105: Not Listed | K105: OBL | L105: Native | M105: 3 | N105: 5 | O105: 10007676 | P105: 1 | R105: 1
A106: Bacopa monnieri | G106: =SUM(COUNTIFS(C106:F106,{"P","C","D"})) -> 0 | H106: 0 | I106: 3.5 | J106: Not Listed | K106: OBL | L106: Native | M106: 3 | N106: 5 | O106: 33038 | P106: 1 | Q106: 1 | R106: 1
A107: Bambusa | G107: =SUM(COUNTIFS(C107:F107,{"P","C","D"})) -> 0 | H107: 0 | I107: -9 | J107: Not Listed | L107: -9 | M107: 3 | N107: 1 | O107: 10009233 | P107: -9 | Q107: 2 | R107: 1
A108: Begonia | G108: =SUM(COUNTIFS(C108:F108,{"P","C","D"})) -> 0 | H108: 0 | I108: -9 | J108: Split Genus | L108: -9 | M108: 4 | N108: 1 | O108: 22327 | P108: -9 | Q108: 1 | R108: 1
A109: Betula nigra | G109: =SUM(COUNTIFS(C109:F109,{"P","C","D"})) -> 0 | H109: 0 | J109: Not Listed | K109: OBL | L109: Native | M109: 3 | N109: 5 | O109: 19480 | P109: 1 | Q109: 6 | R109: 2
A110: Bidens | G110: =SUM(COUNTIFS(C110:F110,{"P","C","D"})) -> 0 | H110: 0 | I110: -9 | J110: Not Listed | K110: Var Genus | L110: Native | M110: 3 | N110: 9 | O110: 35705 | P110: 1 | Q110: 1 | R110: 1
A111: Bidens alba | G111: =SUM(COUNTIFS(C111:F111,{"P","C","D"})) -> 0 | H111: 0 | I111: 1 | J111: Not Listed | K111: FAC | L111: Native | M111: 3 | N111: 3 | O111: 10008614 | P111: 1 | Q111: 1 | R111: 1
A112: Bidens discoidea | G112: =SUM(COUNTIFS(C112:F112,{"P","C","D"})) -> 0 | H112: 0 | I112: 4.5 | J112: Not Listed | K112: OBL | L112: Native | M112: 3 | N112: 5 | O112: 35719 | P112: 1 | Q112: 1 | R112: 1
A113: Bidens laevis | G113: =SUM(COUNTIFS(C113:F113,{"P","C","D"})) -> 0 | H113: 0 | I113: 5.5 | J113: Not Listed | K113: OBL | L113: Native | M113: 3 | N113: 5 | O113: 35711 | P113: 1 | Q113: 1 | R113: 1
A114: Bidens mitis | G114: =SUM(COUNTIFS(C114:F114,{"P","C","D"})) -> 0 | H114: 0 | I114: 4.5 | J114: Not Listed | K114: OBL | L114: Native | M114: 3 | N114: 5 | O114: 35729 | P114: 1 | Q114: 1 | R114: 1
A115: Bidens pilosa | G115: =SUM(COUNTIFS(C115:F115,{"P","C","D"})) -> 0 | H115: 0 | I115: 1.64 | J115: Not Listed | K115: FAC | L115: Exotic | M115: 3 | N115: 3 | O115: 35731 | P115: 2 | Q115: 1 | R115: 1
A116: Bigelowia | G116: =SUM(COUNTIFS(C116:F116,{"P","C","D"})) -> 0 | H116: 0 | J116: -9 | L116: -9 | M116: -9 | N116: -9 | O116: 36836 | P116: -9 | Q116: -9 | R116: -9
A117: Bigelowia nudata | G117: =SUM(COUNTIFS(C117:F117,{"P","C","D"})) -> 0 | H117: 0 | I117: 7.59 | J117: Not Listed | K117: FACW | L117: Native | M117: 3 | N117: 4 | O117: 36837 | P117: 1 | Q117: 1 | R117: 1
A118: Blechnum | G118: =SUM(COUNTIFS(C118:F118,{"P","C","D"})) -> 0 | H118: 0 | I118: -9 | J118: Not Listed | L118: Native | M118: 3 | N118: 1 | O118: 17862 | P118: 1 | Q118: 1 | R118: 1
A119: Blechnum serrulatum | G119: =SUM(COUNTIFS(C119:F119,{"P","C","D"})) -> 0 | H119: 0 | I119: 5.5 | J119: Not Listed | K119: FACW | L119: Native | M119: 3 | N119: 4 | O119: 17864 | P119: 1 | Q119: 1 | R119: 1
A120: Boehmeria | G120: =SUM(COUNTIFS(C120:F120,{"P","C","D"})) -> 0 | H120: 0 | J120: -9 | L120: -9 | M120: -9 | N120: -9 | O120: 19120 | P120: -9 | Q120: -9 | R120: -9
A121: Boehmeria cylindrica | C121: P | E121: P | F121: P | G121: =SUM(COUNTIFS(C121:F121,{"P","C","D"})) -> 3 | H121: 3 | I121: 5 | J121: Not Listed | K121: OBL | L121: Native | M121: 3 | N121: 5 | O121: 19121 | P121: 1 | Q121: 1 | R121: 1
A122: Boltonia | G122: =SUM(COUNTIFS(C122:F122,{"P","C","D"})) -> 0 | H122: 0 | J122: -9 | L122: -9 | M122: -9 | N122: -9 | O122: 36852 | P122: -9 | Q122: -9 | R122: -9
A123: Boltonia apalachicolensis | G123: =SUM(COUNTIFS(C123:F123,{"P","C","D"})) -> 0 | H123: 0 | I123: 7.17 | J123: Not Listed | K123: FACW | L123: Native | M123: 3 | N123: 4 | O123: 10015478 | P123: 1 | Q123: 1 | R123: 1
A124: Boltonia diffusa | G124: =SUM(COUNTIFS(C124:F124,{"P","C","D"})) -> 0 | H124: 0 | I124: 4.96 | J124: Not Listed | K124: FACW | L124: Native | M124: 3 | N124: 4 | O124: 36855 | P124: 1 | Q124: 1 | R124: 1
A125: Brachiaria | G125: =SUM(COUNTIFS(C125:F125,{"P","C","D"})) -> 0 | H125: 0 | I125: -9 | J125: Split Genus | K125: Var Genus | L125: -9 | M125: 4 | N125: 9 | O125: 41512 | P125: -9 | Q125: 2 | R125: 1
A126: Brasenia schreberi | G126: =SUM(COUNTIFS(C126:F126,{"P","C","D"})) -> 0 | H126: 0 | I126: 8.79 | J126: Not Listed | K126: OBL | L126: Native | M126: 3 | N126: 5 | O126: 18370 | P126: 1 | Q126: 1 | R126: 1
A127: Burmannia capitata | G127: =SUM(COUNTIFS(C127:F127,{"P","C","D"})) -> 0 | H127: 0 | I127: 8.13 | J127: Not Listed | K127: OBL | L127: Native | M127: 3 | N127: 5 | O127: 43389 | P127: 1 | R127: 1
A128: Cabomba caroliniana | G128: =SUM(COUNTIFS(C128:F128,{"P","C","D"})) -> 0 | H128: 0 | I128: 5.5 | J128: Not Listed | K128: OBL | L128: Native | M128: 3 | N128: 5 | O128: 18408 | P128: 1 | Q128: 1 | R128: 1
A129: Callicarpa americana | G129: =SUM(COUNTIFS(C129:F129,{"P","C","D"})) -> 0 | H129: 0 | I129: 3.2 | J129: Not Listed | K129: UPL | L129: Native | M129: 3 | N129: 2 | O129: 32144 | P129: 1 | Q129: 4 | R129: 2
A130: Callistemon viminalis | G130: =SUM(COUNTIFS(C130:F130,{"P","C","D"})) -> 0 | H130: 0 | I130: 0 | J130: Category 2 | L130: Exotic | M130: 2 | N130: 1 | O130: 10008851 | P130: 2 | Q130: 4 | R130: 2
A131: Callitriche | G131: =SUM(COUNTIFS(C131:F131,{"P","C","D"})) -> 0 | H131: 0 | I131: -9 | J131: Not Listed | K131: OBL | L131: -9 | M131: 3 | N131: 5 | O131: 32050 | P131: -9 | Q131: 1 | R131: 1
A132: Campsis radicans | G132: =SUM(COUNTIFS(C132:F132,{"P","C","D"})) -> 0 | H132: 0 | I132: 2.53 | J132: Not Listed | L132: Native | M132: 3 | N132: 1 | O132: 34309 | P132: 1 | Q132: 7 | R132: 2
A133: Canna | G133: =SUM(COUNTIFS(C133:F133,{"P","C","D"})) -> 0 | H133: 0 | I133: -9 | J133: Not Listed | K133: OBL | L133: Native | M133: 3 | N133: 5 | O133: 42409 | P133: 1 | Q133: 1 | R133: 1
A134: Canna flaccida | G134: =SUM(COUNTIFS(C134:F134,{"P","C","D"})) -> 0 | H134: 0 | I134: 5.5 | J134: Not Listed | K134: OBL | L134: Native | M134: 3 | N134: 5 | O134: 42410 | P134: 1 | Q134: 1 | R134: 1
A135: Canna indica | G135: =SUM(COUNTIFS(C135:F135,{"P","C","D"})) -> 0 | H135: 0 | J135: Not Listed | K135: OBL | L135: Exotic | M135: 3 | N135: 5 | O135: 42413 | P135: 2 | Q135: 1 | R135: 1
A136: Canna x generalis | G136: =SUM(COUNTIFS(C136:F136,{"P","C","D"})) -> 0 | H136: 0 | I136: -9 | J136: Not Listed | K136: FAC | L136: Exotic | M136: 3 | N136: 3 | O136: 10015736 | P136: 2 | Q136: 1 | R136: 1
A137: Caperonia | G137: =SUM(COUNTIFS(C137:F137,{"P","C","D"})) -> 0 | H137: 0 | I137: -9 | J137: Not Listed | K137: FACW | L137: -9 | M137: 3 | N137: 4 | O137: 28242 | P137: -9 | Q137: 1 | R137: 1
A138: Caperonia castaneifolia | G138: =SUM(COUNTIFS(C138:F138,{"P","C","D"})) -> 0 | H138: 0 | I138: 4.94 | J138: Not Listed | K138: FACW | L138: Native | M138: 3 | N138: 4 | O138: 10007679 | P138: 1 | Q138: 1 | R138: 1
A139: Caperonia palustris | G139: =SUM(COUNTIFS(C139:F139,{"P","C","D"})) -> 0 | H139: 0 | I139: 0.52 | J139: Not Listed | K139: FACW | L139: Exotic | M139: 3 | N139: 4 | O139: 28243 | P139: 2 | R139: 1
A140: Cardamine | G140: =SUM(COUNTIFS(C140:F140,{"P","C","D"})) -> 0 | H140: 0 | J140: -9 | L140: -9 | M140: -9 | N140: -9 | O140: 22768 | P140: -9 | Q140: -9 | R140: -9
A141: Cardamine pensylvanica | G141: =SUM(COUNTIFS(C141:F141,{"P","C","D"})) -> 0 | H141: 0 | I141: 4.42 | J141: Not Listed | K141: OBL | L141: Native | M141: 3 | N141: 5 | O141: 22772 | P141: 1 | Q141: 1 | R141: 1
A142: Carex | G142: =SUM(COUNTIFS(C142:F142,{"P","C","D"})) -> 0 | H142: 0 | I142: -9 | J142: Not Listed | K142: Var Genus | L142: -9 | M142: 3 | N142: 9 | O142: 39369 | P142: -9 | Q142: 2 | R142: 1
A143: Carex alata | G143: =SUM(COUNTIFS(C143:F143,{"P","C","D"})) -> 0 | H143: 0 | I143: 4.27 | J143: Not Listed | K143: FACW | L143: Native | M143: 3 | N143: 4 | O143: 39370 | P143: 1 | R143: 1
A144: Carex albolutescens | B144: Carex longi | G144: =SUM(COUNTIFS(C144:F144,{"P","C","D"})) -> 0 | H144: =IF(OR(N144=3,N144=4,N144=5,N144=8,N144=9,Q144=7,O144=18036),G144,0) -> 0 | I144: 3.47 | J144: Not Listed | K144: FACW | L144: Native | M144: 3 | N144: 4 | O144: 39371 | P144: 1 | Q144: 2 | R144: 1
A145: Carex comosa | G145: =SUM(COUNTIFS(C145:F145,{"P","C","D"})) -> 0 | H145: 0 | I145: 1.5 | J145: Not Listed | K145: OBL | L145: Native | M145: 3 | N145: 5 | O145: 39384 | P145: 1 | Q145: 2 | R145: 1
A146: Carex decomposita | G146: =SUM(COUNTIFS(C146:F146,{"P","C","D"})) -> 0 | H146: 0 | I146: -9 | J146: Not Listed | K146: OBL | L146: Native | M146: 3 | N146: 5 | O146: 39389 | P146: 1 | Q146: 2 | R146: 1
A147: Carex elliottii | G147: =SUM(COUNTIFS(C147:F147,{"P","C","D"})) -> 0 | H147: 0 | J147: Not Listed | K147: OBL | L147: Native | M147: 3 | N147: 5 | O147: 39588 | P147: 1 | Q147: 2 | R147: 1
A148: Carex fissa | G148: =SUM(COUNTIFS(C148:F148,{"P","C","D"})) -> 0 | H148: 0 | I148: 3.9 | J148: Not Listed | K148: FACW | L148: Native | M148: 3 | N148: 4 | O148: 39601 | P148: 1 | Q148: 2 | R148: 1
A149: Carex gigantea | G149: =SUM(COUNTIFS(C149:F149,{"P","C","D"})) -> 0 | H149: 0 | I149: 5.07 | J149: Not Listed | K149: OBL | L149: Native | M149: 3 | N149: 5 | O149: 39394 | P149: 1 | Q149: 2 | R149: 1
A150: Carex glaucescens | G150: =SUM(COUNTIFS(C150:F150,{"P","C","D"})) -> 0 | H150: 0 | I150: 4.7 | J150: Not Listed | K150: FACW | L150: Native | M150: 3 | N150: 4 | O150: 39396 | P150: 1 | Q150: 2 | R150: 1
A151: Carex joorii | G151: =SUM(COUNTIFS(C151:F151,{"P","C","D"})) -> 0 | H151: 0 | I151: 0 | J151: Not Listed | K151: FACW | L151: Native | M151: 3 | N151: 4 | O151: 10015972 | P151: 1 | Q151: 2 | R151: 1
A152: Carex longii | G152: =SUM(COUNTIFS(C152:F152,{"P","C","D"})) -> 0 | H152: 0 | I152: 2.25 | J152: Not Listed | K152: FACW | L152: Native | M152: 3 | N152: 4 | O152: 10010633 | P152: 1 | Q152: 2 | R152: 1
A153: Carex lupuliformis | G153: =SUM(COUNTIFS(C153:F153,{"P","C","D"})) -> 0 | H153: 0 | I153: 5.5 | J153: Not Listed | K153: OBL | L153: Native | M153: 3 | N153: 5 | O153: 39412 | P153: 1 | Q153: 2 | R153: 1
A154: Carex lupulina | G154: =SUM(COUNTIFS(C154:F154,{"P","C","D"})) -> 0 | H154: 0 | I154: 5.5 | J154: Not Listed | K154: OBL | L154: Native | M154: 3 | N154: 5 | O154: 39413 | P154: 1 | Q154: 2 | R154: 1
A155: Carex lurida | B155: Carex rostrata | G155: =SUM(COUNTIFS(C155:F155,{"P","C","D"})) -> 0 | H155: 0 | I155: 4.29 | J155: Not Listed | K155: OBL | L155: Native | M155: 3 | N155: 5 | O155: 39414 | P155: 1 | Q155: 2 | R155: 1
A156: Carex stipata | G156: =SUM(COUNTIFS(C156:F156,{"P","C","D"})) -> 0 | H156: 0 | I156: 4.46 | J156: Not Listed | K156: OBL | L156: Native | M156: 3 | N156: 5 | O156: 39434 | P156: 1 | Q156: 2 | R156: 1
A157: Carex striata | B157: Carex striata (Carex walteriana) | G157: =SUM(COUNTIFS(C157:F157,{"P","C","D"})) -> 0 | H157: 0 | I157: 4 | J157: Not Listed | K157: OBL | L157: Native | M157: 3 | N157: 5 | O157: 10010653 | P157: 1 | R157: 1
A158: Carex verrucosa | G158: =SUM(COUNTIFS(C158:F158,{"P","C","D"})) -> 0 | H158: 0 | I158: 9.1 | J158: Not Listed | K158: FACW | L158: Native | M158: 3 | N158: 4 | O158: 39862 | P158: 1 | Q158: 2 | R158: 1
A159: Carphephorus | G159: =SUM(COUNTIFS(C159:F159,{"P","C","D"})) -> 0 | H159: 0 | I159: -9 | J159: Not Listed | K159: Var Genus | L159: -9 | M159: 3 | N159: 9 | O159: 36939 | P159: -9 | Q159: 1 | R159: 1
A160: Carphephorus odoratissimus | G160: =SUM(COUNTIFS(C160:F160,{"P","C","D"})) -> 0 | H160: 0 | I160: 6.93 | J160: Not Listed | K160: FAC | L160: Native | M160: 3 | N160: 3 | O160: 10007678 | P160: 1 | R160: 1
A161: Carpinus caroliniana | G161: =SUM(COUNTIFS(C161:F161,{"P","C","D"})) -> 0 | H161: 0 | I161: 6.5 | J161: Not Listed | K161: FACW | L161: Native | M161: 3 | N161: 4 | O161: 19504 | P161: 1 | Q161: 6 | R161: 2
A162: Cartrema | G162: =SUM(COUNTIFS(C162:F162,{"P","C","D"})) -> 0 | H162: 0 | I162: 0 | J162: Not Listed | K162: Var Genus | L162: Native | M162: 3 | N162: 9 | O162: 10016058 | P162: 1 | Q162: 4 | R162: 2
A163: Cartrema americanus | G163: =SUM(COUNTIFS(C163:F163,{"P","C","D"})) -> 0 | H163: 0 | I163: 0 | J163: Not Listed | K163: FAC | L163: Native | M163: 3 | N163: 3 | O163: 10016059 | P163: 1 | Q163: 4 | R163: 2
A164: Carya | G164: =SUM(COUNTIFS(C164:F164,{"P","C","D"})) -> 0 | H164: 0 | I164: -9 | J164: Not Listed | K164: Var Genus | L164: Native | M164: 3 | N164: 9 | O164: 19223 | P164: 1 | Q164: 6 | R164: 2
A165: Carya aquatica | G165: =SUM(COUNTIFS(C165:F165,{"P","C","D"})) -> 0 | H165: 0 | I165: 7 | J165: Not Listed | K165: OBL | L165: Native | M165: 3 | N165: 5 | O165: 19224 | P165: 1 | Q165: 6 | R165: 2
A166: Cassia | G166: =SUM(COUNTIFS(C166:F166,{"P","C","D"})) -> 0 | H166: 0 | I166: 1.46 | J166: Not Listed | L166: Exotic | M166: 3 | N166: 1 | O166: 25735 | P166: 2 | Q166: 1 | R166: 1
A167: Cassia fistula | G167: =SUM(COUNTIFS(C167:F167,{"P","C","D"})) -> 0 | H167: 0 | J167: -9 | L167: -9 | M167: -9 | N167: -9 | O167: 25749 | P167: -9
A168: Cassytha | G168: =SUM(COUNTIFS(C168:F168,{"P","C","D"})) -> 0 | H168: 0 | J168: -9 | L168: -9 | M168: -9 | N168: -9 | O168: 18172 | P168: -9 | Q168: -9 | R168: -9
A169: Cassytha filiformis | G169: =SUM(COUNTIFS(C169:F169,{"P","C","D"})) -> 0 | H169: 0 | I169: 3.34 | J169: Not Listed | L169: Native | M169: 3 | N169: 1 | O169: 18173 | P169: 1 | Q169: 7 | R169: 1
A170: Casuarina | G170: =SUM(COUNTIFS(C170:F170,{"P","C","D"})) -> 0 | H170: 0 | I170: 0 | J170: Split Genus | K170: FAC | L170: Exotic | M170: 4 | N170: 3 | O170: 19514 | P170: 2 | Q170: 6 | R170: 2
A171: Casuarina equisetifolia | G171: =SUM(COUNTIFS(C171:F171,{"P","C","D"})) -> 0 | H171: 0 | I171: 0 | J171: Category 1 | K171: FAC | L171: Exotic | M171: 1 | N171: 3 | O171: 19516 | P171: 2 | Q171: 6 | R171: 2
A172: Casuarina glauca | G172: =SUM(COUNTIFS(C172:F172,{"P","C","D"})) -> 0 | H172: 0 | I172: 0 | J172: Category 1 | L172: Exotic | M172: 1 | N172: -9 | O172: 19517 | P172: 2 | R172: -9
A173: Catalpa bignonioides | G173: =SUM(COUNTIFS(C173:F173,{"P","C","D"})) -> 0 | H173: 0 | I173: 3.27 | J173: Not Listed | L173: Native | M173: 3 | N173: 1 | O173: 34313 | P173: 1 | Q173: 6 | R173: 2
A174: Celtis | G174: =SUM(COUNTIFS(C174:F174,{"P","C","D"})) -> 0 | H174: 0 | J174: -9 | L174: -9 | M174: -9 | N174: -9 | O174: 19039 | P174: -9 | Q174: -9 | R174: -9
A175: Celtis laevigata | G175: =SUM(COUNTIFS(C175:F175,{"P","C","D"})) -> 0 | H175: 0 | I175: 5.08 | J175: Not Listed | K175: FACW | L175: Native | M175: 3 | N175: 4 | O175: 19042 | P175: 1 | Q175: 6 | R175: 2
A176: Cenchrus | G176: =SUM(COUNTIFS(C176:F176,{"P","C","D"})) -> 0 | H176: 0 | J176: -9 | L176: -9 | M176: -9 | N176: -9 | O176: 40569 | P176: -9 | Q176: -9 | R176: -9
A177: Centella asiatica | B177: Centella erecta | G177: =SUM(COUNTIFS(C177:F177,{"P","C","D"})) -> 0 | H177: 0 | I177: 1.92 | J177: Not Listed | K177: FACW | L177: Native | M177: 3 | N177: 4 | O177: 29612 | P177: 1 | Q177: 1 | R177: 1
A178: Cephalanthus occidentalis | C178: P | D178: P | F178: P | G178: =SUM(COUNTIFS(C178:F178,{"P","C","D"})) -> 3 | H178: 3 | I178: 5 | J178: Not Listed | K178: OBL | L178: Native | M178: 3 | N178: 5 | O178: 34786 | P178: 1 | Q178: 4 | R178: 2
A179: Ceratophyllum | G179: =SUM(COUNTIFS(C179:F179,{"P","C","D"})) -> 0 | H179: 0 | J179: Not Listed | K179: OBL | L179: Native | M179: 3 | N179: 5 | O179: 18402 | P179: 1 | Q179: -9 | R179: -9
A180: Ceratophyllum demersum | G180: =SUM(COUNTIFS(C180:F180,{"P","C","D"})) -> 0 | H180: 0 | I180: 4.16 | J180: Not Listed | K180: OBL | L180: Native | M180: 3 | N180: 5 | O180: 18403 | P180: 1 | Q180: 1 | R180: 1
A181: Ceratopteris | G181: =SUM(COUNTIFS(C181:F181,{"P","C","D"})) -> 0 | H181: 0 | I181: -9 | J181: Not Listed | K181: OBL | L181: -9 | M181: 3 | N181: 5 | O181: 17955 | P181: -9 | Q181: 1 | R181: 1
A182: Ceratopteris pteridoides | G182: =SUM(COUNTIFS(C182:F182,{"P","C","D"})) -> 0 | H182: 0 | I182: 2.67 | J182: Not Listed | K182: OBL | L182: Native | M182: 3 | N182: 5 | O182: 17956 | P182: 1 | Q182: 1 | R182: 1
A183: Ceratopteris thalictroides | G183: =SUM(COUNTIFS(C183:F183,{"P","C","D"})) -> 0 | H183: 0 | I183: 2.93 | J183: Not Listed | K183: OBL | L183: Exotic | M183: 3 | N183: 5 | O183: 17958 | P183: 2 | Q183: 1 | R183: 1
A184: Cestrum diurnum | G184: =SUM(COUNTIFS(C184:F184,{"P","C","D"})) -> 0 | H184: 0 | I184: 0 | J184: Category 2 | L184: Exotic | M184: 2 | N184: 3 | O184: 30496 | P184: 2 | Q184: -9 | R184: -9
A185: Chamaecyparis thyoides | G185: =SUM(COUNTIFS(C185:F185,{"P","C","D"})) -> 0 | H185: 0 | I185: 7.09 | J185: Not Listed | K185: OBL | L185: Native | M185: 3 | N185: 5 | O185: 18046 | P185: 1 | Q185: 6 | R185: 2
A186: Chara | G186: =SUM(COUNTIFS(C186:F186,{"P","C","D"})) -> 0 | H186: 0 | I186: 3.9 | J186: Not Listed | K186: OBL | L186: Native | M186: 3 | N186: 5 | O186: 9421 | P186: 1 | Q186: 3 | R186: 1
A187: Chasmanthium | G187: =SUM(COUNTIFS(C187:F187,{"P","C","D"})) -> 0 | H187: 0 | J187: -9 | L187: -9 | M187: -9 | N187: -9 | O187: 41546 | P187: -9 | Q187: -9 | R187: -9
A188: Chasmanthium laxum | G188: =SUM(COUNTIFS(C188:F188,{"P","C","D"})) -> 0 | H188: 0 | I188: 7.37 | J188: Not Listed | K188: FACW | L188: Native | M188: 3 | N188: 4 | O188: 41548 | P188: 1 | Q188: 2 | R188: 1
A189: Chasmanthium nitidum | G189: =SUM(COUNTIFS(C189:F189,{"P","C","D"})) -> 0 | H189: 0 | I189: 5.67 | J189: Not Listed | K189: FACW | L189: Native | M189: 3 | N189: 4 | O189: 41549 | P189: 1 | Q189: 2 | R189: 1
A190: Chenopodium | G190: =SUM(COUNTIFS(C190:F190,{"P","C","D"})) -> 0 | H190: 0 | I190: -9 | J190: Not Listed | L190: -9 | M190: 3 | N190: -9 | O190: 20589 | P190: -9 | Q190: 1 | R190: 1
A191: Chenopodium album | G191: =SUM(COUNTIFS(C191:F191,{"P","C","D"})) -> 0 | H191: 0 | I191: 0.78 | J191: Not Listed | L191: Exotic | M191: 3 | N191: -9 | O191: 20592 | P191: 2 | R191: 1
A192: Chenopodium ambrosioides | G192: =SUM(COUNTIFS(C192:F192,{"P","C","D"})) -> 0 | H192: 0 | I192: 0.59 | J192: Not Listed | L192: Exotic | M192: 3 | N192: -9 | O192: 20590 | P192: 2 | R192: 1
A193: Chrysobalanus icaco | G193: =SUM(COUNTIFS(C193:F193,{"P","C","D"})) -> 0 | H193: 0 | I193: 5.63 | J193: Not Listed | K193: FACW | L193: Native | M193: 3 | N193: 4 | O193: 25148 | P193: 1 | Q193: 4 | R193: 2
A194: Chrysoma pauciflosculosa | G194: =SUM(COUNTIFS(C194:F194,{"P","C","D"})) -> 0 | H194: 0 | I194: 4.4 | J194: Not Listed | L194: Native | M194: 3 | N194: 1 | O194: 37047 | P194: 1 | Q194: 4 | R194: 2
A195: Chrysopsis | G195: =SUM(COUNTIFS(C195:F195,{"P","C","D"})) -> 0 | H195: 0 | I195: -9 | J195: Not Listed | L195: -9 | M195: 3 | N195: 1 | O195: 10010558 | P195: -9 | Q195: 1 | R195: 1
A196: Chrysopsis lanuginosa | G196: =SUM(COUNTIFS(C196:F196,{"P","C","D"})) -> 0 | H196: 0 | J196: Not Listed | L196: Native | M196: 3 | N196: 1 | O196: 10015828 | P196: 1 | Q196: 1 | R196: 1
A197: Chrysopsis mariana | G197: =SUM(COUNTIFS(C197:F197,{"P","C","D"})) -> 0 | H197: 0 | I197: 3.7 | J197: Not Listed | K197: UPL | L197: Native | M197: 3 | N197: 2 | O197: 10010513 | P197: 1 | Q197: 1 | R197: 1
A198: Cicuta maculata | B198: Cicuta mexicana | G198: =SUM(COUNTIFS(C198:F198,{"P","C","D"})) -> 0 | H198: 0 | I198: 4.54 | J198: Not Listed | K198: OBL | L198: Native | M198: 3 | N198: 5 | O198: 29456 | P198: 1 | Q198: 1 | R198: 1
A199: Cinnamomum camphora | G199: =SUM(COUNTIFS(C199:F199,{"P","C","D"})) -> 0 | H199: 0 | I199: 0 | J199: Category 1 | K199: UPL | L199: Exotic | M199: 1 | N199: 2 | O199: 18175 | P199: 2 | Q199: 6 | R199: 2
A200: Cirsium | G200: =SUM(COUNTIFS(C200:F200,{"P","C","D"})) -> 0 | H200: 0 | J200: -9 | L200: -9 | M200: -9 | N200: -9 | O200: 36334 | P200: -9 | Q200: -9 | R200: -9
A201: Cirsium nuttallii | G201: =SUM(COUNTIFS(C201:F201,{"P","C","D"})) -> 0 | H201: 0 | I201: 3.08 | J201: Not Listed | K201: FACW | L201: Native | M201: 3 | N201: 4 | O201: 36390 | P201: 1 | Q201: 1 | R201: 1
A202: Cladium | G202: =SUM(COUNTIFS(C202:F202,{"P","C","D"})) -> 0 | H202: 0 | J202: -9 | L202: -9 | M202: -9 | N202: -9 | O202: 39877 | P202: -9 | Q202: -9 | R202: -9
A203: Cladium jamaicense | G203: =SUM(COUNTIFS(C203:F203,{"P","C","D"})) -> 0 | H203: 0 | I203: 8 | J203: Not Listed | K203: OBL | L203: Native | M203: 3 | N203: 5 | O203: 39878 | P203: 1 | Q203: 2 | R203: 1
... 1199 more rows

Sheet LVI Calculator
A1: LAKE VEGETATION INDEX (LVI) CALCULATOR Based on FDEP-SOP-002/01, LVI 2200 Vegetation Index Created July 1, 2024
A2: Lake Name | B2: Field ID | C2: WIN Organization ID | D2: WIN Station ID | E2: Win Location Description | F2: WBID | G2: Sampling Date | H2: Sampler #1 | I2: Sampler #2 | J2: Region | K2: Notes
A3: ='Site Info'!B2 -> Low Lake | B3: ='Site Info'!B7 -> 0 | C3: ='Site Info'!B4 -> 21FLA | D3: ='Site Info'!B5 -> 21020065 | E3: ='Site Info'!B6 -> LOWREF | F3: ='Site Info'!B10 -> 00:00:00 | G3: ='Site Info'!B16 -> 00:00:00 | H3: ='Site Info'!B17&IF('Site Info'!C17=TRUE,"*","") -> Test Testerson* | I3: ='Site Info'!B18&IF('Site Info'!C18=TRUE,"*","") ->  | J3: ='LVI Taxa List'!J11 -> North | K3: ='LVI Taxa List'!K8 -> 0
A4: Metric | B4: =B15&" Metric Value" -> Segment 1 Metric Value | C4: =C15&" Metric Value" -> Segment 4 Metric Value | D4: =D15&" Metric Value" -> Segment 7 Metric Value | E4: =E15&" Metric Value" -> Segment 10 Metric Value | F4: Regional Metric Score Equation | G4: =B15&" Metric Score" -> Segment 1 Metric Score | H4: =C15&" Metric Score" -> Segment 4 Metric Score | I4: =D15&" Metric Score" -> Segment 7 Metric Score | J4: =E15&" Metric Score" -> Segment 10 Metric Score
A5: % Native Taxa | B5: =SUM(COUNTIFS(B16:B2001,{"d","c","p"},$N$16:$N$2001,"=1",$G$16:$G$2001,">0"))/B9*100 -> 84.21052632 | C5: =SUM(COUNTIFS(C16:C2001,{"d","c","p"},$N$16:$N$2001,"=1",$G$16:$G$2001,">0"))/C9*100 -> 91.66666667 | D5: =SUM(COUNTIFS(D16:D2001,{"d","c","p"},$N$16:$N$2001,"=1",$G$16:$G$2001,">0"))/D9*100 -> 86.66666667 | E5: =SUM(COUNTIFS(E16:E2001,{"d","c","p"},$N$16:$N$2001,"=1",$G$16:$G$2001,">0"))/E9*100 -> 88.88888889 | F5: =VLOOKUP($J$3,DropDown!$F$2:$J$3,2,FALSE) -> (X-62.5)/37.5 | G5: =IF(VLOOKUP($J$3,DropDown!$E$7:$J$8,3,FALSE)<0,0,IF(VLOOKUP($J$3,DropDown!$E$7:$J$8,3,FALSE)>1,1,VLOOKUP($J$3,DropDown!$E$7:$J$8,3,FALSE))) -> 0.5789473684 | H5: =IF(VLOOKUP($J$3,DropDown!$E$7:$J$8,4,FALSE)<0,0,IF(VLOOKUP($J$3,DropDown!$E$7:$J$8,4,FALSE)>1,1,VLOOKUP($J$3,DropDown!$E$7:$J$8,4,FALSE))) -> 0.7777777778 | I5: =IF(VLOOKUP($J$3,DropDown!$E$7:$J$8,5,FALSE)<0,0,IF(VLOOKUP($J$3,DropDown!$E$7:$J$8,5,FALSE)>1,1,VLOOKUP($J$3,DropDown!$E$7:$J$8,5,FALSE))) -> 0.6444444444 | J5: =IF(VLOOKUP($J$3,DropDown!$E$7:$J$8,6,FALSE)<0,0,IF(VLOOKUP($J$3,DropDown!$E$7:$J$8,6,FALSE)>1,1,VLOOKUP($J$3,DropDown!$E$7:$J$8,6,FALSE))) -> 0.7037037037
A6: % FLEPPC Taxa | B6: =SUM(COUNTIFS(B16:B2001,{"d","c","p"},$L$16:$L$2001,"=1",$G$16:$G$2001,">0"))/B9*100 -> 15.78947368 | C6: =SUM(COUNTIFS(C16:C2001,{"d","c","p"},$L$16:$L$2001,"=1",$G$16:$G$2001,">0"))/C9*100 -> 8.333333333 | D6: =SUM(COUNTIFS(D16:D2001,{"d","c","p"},$L$16:$L$2001,"=1",$G$16:$G$2001,">0"))/D9*100 -> 13.33333333 | E6: =SUM(COUNTIFS(E16:E2001,{"d","c","p"},$L$16:$L$2001,"=1",$G$16:$G$2001,">0"))/E9*100 -> 11.11111111 | F6: =VLOOKUP($J$3,DropDown!$F$2:$J$3,3,FALSE) -> 1-(X/30) | G6: =IF(VLOOKUP($J$3,DropDown!$E$10:$J$11,3,FALSE)<0,0,IF(VLOOKUP($J$3,DropDown!$E$10:$J$11,3,FALSE)>1,1,VLOOKUP($J$3,DropDown!$E$10:$J$11,3,FALSE))) -> 0.4736842105 | H6: =IF(VLOOKUP($J$3,DropDown!$E$10:$J$11,4,FALSE)<0,0,IF(VLOOKUP($J$3,DropDown!$E$10:$J$11,4,FALSE)>1,1,VLOOKUP($J$3,DropDown!$E$10:$J$11,4,FALSE))) -> 0.7222222222 | I6: =IF(VLOOKUP($J$3,DropDown!$E$10:$J$11,5,FALSE)<0,0,IF(VLOOKUP($J$3,DropDown!$E$10:$J$11,5,FALSE)>1,1,VLOOKUP($J$3,DropDown!$E$10:$J$11,5,FALSE))) -> 0.5555555556 | J6: =IF(VLOOKUP($J$3,DropDown!$E$10:$J$11,6,FALSE)<0,0,IF(VLOOKUP($J$3,DropDown!$E$10:$J$11,6,FALSE)>1,1,VLOOKUP($J$3,DropDown!$E$10:$J$11,6,FALSE))) -> 0.6296296296
A7: % Sensitive Taxa | B7: =SUM(COUNTIFS(B16:B2001,{"d","c","p"},$H$16:$H$2001,">=7",$G$16:$G$2001,">0"))/B9*100 -> 5.263157895 | C7: =SUM(COUNTIFS(C16:C2001,{"d","c","p"},$H$16:$H$2001,">=7",$G$16:$G$2001,">0"))/C9*100 -> 16.66666667 | D7: =SUM(COUNTIFS(D16:D2001,{"d","c","p"},$H$16:$H$2001,">=7",$G$16:$G$2001,">0"))/D9*100 -> 6.666666667 | E7: =SUM(COUNTIFS(E16:E2001,{"d","c","p"},$H$16:$H$2001,">=7",$G$16:$G$2001,">0"))/E9*100 -> 11.11111111 | F7: =VLOOKUP($J$3,DropDown!$F$2:$J$3,4,FALSE) -> X/27.78 | G7: =IF(VLOOKUP($J$3,DropDown!$E$13:$J$14,3,FALSE)<0,0,IF(VLOOKUP($J$3,DropDown!$E$13:$J$14,3,FALSE)>1,1,VLOOKUP($J$3,DropDown!$E$13:$J$14,3,FALSE))) -> 0.1894585275 | H7: =IF(VLOOKUP($J$3,DropDown!$E$13:$J$14,4,FALSE)<0,0,IF(VLOOKUP($J$3,DropDown!$E$13:$J$14,4,FALSE)>1,1,VLOOKUP($J$3,DropDown!$E$13:$J$14,4,FALSE))) -> 0.5999520038 | I7: =IF(VLOOKUP($J$3,DropDown!$E$13:$J$14,5,FALSE)<0,0,IF(VLOOKUP($J$3,DropDown!$E$13:$J$14,5,FALSE)>1,1,VLOOKUP($J$3,DropDown!$E$13:$J$14,5,FALSE))) -> 0.2399808015 | J7: =IF(VLOOKUP($J$3,DropDown!$E$13:$J$14,6,FALSE)<0,0,IF(VLOOKUP($J$3,DropDown!$E$13:$J$14,6,FALSE)>1,1,VLOOKUP($J$3,DropDown!$E$13:$J$14,6,FALSE))) -> 0.3999680026
A8: Dominant Taxa C of C | B8: =IF(SUM(COUNTIFS(B16:B2001,{"d","c"},$H$16:$H$2001,">=0"))=0,"",IF(AND(ISNA(VLOOKUP("d",B16:B2001,1,FALSE)),ISNA(VLOOKUP("c",B16:B2001,1,FALSE))),"",SUM(SUMIFS($H$16:$H$2001,B16:B2001,{"c","d"}))/SUM(COUNTIFS(B16:B2001,{"d","c"},$H$16:$H$2001,">=0")))) -> 0 | C8: =IF(SUM(COUNTIFS(C16:C2001,{"d","c"},$H$16:$H$2001,">=0"))=0,"",IF(AND(ISNA(VLOOKUP("d",C16:C2001,1,FALSE)),ISNA(VLOOKUP("c",C16:C2001,1,FALSE))),"",SUM(SUMIFS($H$16:$H$2001,C16:C2001,{"c","d"}))/SUM(COUNTIFS(C16:C2001,{"d","c"},$H$16:$H$2001,">=0")))) -> 0 | D8: =IF(SUM(COUNTIFS(D16:D2001,{"d","c"},$H$16:$H$2001,">=0"))=0,"",IF(AND(ISNA(VLOOKUP("d",D16:D2001,1,FALSE)),ISNA(VLOOKUP("c",D16:D2001,1,FALSE))),"",SUM(SUMIFS($H$16:$H$2001,D16:D2001,{"c","d"}))/SUM(COUNTIFS(D16:D2001,{"d","c"},$H$16:$H$2001,">=0")))) -> 0 | E8: =IF(SUM(COUNTIFS(E16:E2001,{"d","c"},$H$16:$H$2001,">=0"))=0,"",IF(AND(ISNA(VLOOKUP("d",E16:E2001,1,FALSE)),ISNA(VLOOKUP("c",E16:E2001,1,FALSE))),"",SUM(SUMIFS($H$16:$H$2001,E16:E2001,{"c","d"}))/SUM(COUNTIFS(E16:E2001,{"d","c"},$H$16:$H$2001,">=0")))) -> 0 | F8: =VLOOKUP($J$3,DropDown!$F$2:$J$3,5,FALSE) -> X/7.91 | G8: =IF(VLOOKUP($J$3,DropDown!$E$16:$J$17,3,FALSE)="","",IF(VLOOKUP($J$3,DropDown!$E$16:$J$17,3,FALSE)<0,0,IF(VLOOKUP($J$3,DropDown!$E$16:$J$17,3,FALSE)>1,1,VLOOKUP($J$3,DropDown!$E$16:$J$17,3,FALSE)))) -> 0 | H8: =IF(VLOOKUP($J$3,DropDown!$E$16:$J$17,4,FALSE)="","",IF(VLOOKUP($J$3,DropDown!$E$16:$J$17,4,FALSE)<0,0,IF(VLOOKUP($J$3,DropDown!$E$16:$J$17,4,FALSE)>1,1,VLOOKUP($J$3,DropDown!$E$16:$J$17,4,FALSE)))) -> 0 | I8: =IF(VLOOKUP($J$3,DropDown!$E$16:$J$17,5,FALSE)="","",IF(VLOOKUP($J$3,DropDown!$E$16:$J$17,5,FALSE)<0,0,IF(VLOOKUP($J$3,DropDown!$E$16:$J$17,5,FALSE)>1,1,VLOOKUP($J$3,DropDown!$E$16:$J$17,5,FALSE)))) -> 0 | J8: =IF(VLOOKUP($J$3,DropDown!$E$16:$J$17,6,FALSE)="","",IF(VLOOKUP($J$3,DropDown!$E$16:$J$17,6,FALSE)<0,0,IF(VLOOKUP($J$3,DropDown!$E$16:$J$17,6,FALSE)>1,1,VLOOKUP($J$3,DropDown!$E$16:$J$17,6,FALSE)))) -> 0
A9: Total Taxa LVI Present | B9: =SUM(COUNTIFS(B16:B2001,{"P","C","D"})) -> 19 | C9: =SUM(COUNTIFS(C16:C2001,{"P","C","D"})) -> 12 | D9: =SUM(COUNTIFS(D16:D2001,{"P","C","D"})) -> 15 | E9: =SUM(COUNTIFS(E16:E2001,{"P","C","D"})) -> 18
F10: Segment LVI Score | G10: =AVERAGE(G5:G8)*100 -> 31.05225266 | H10: =AVERAGE(H5:H8)*100 -> 52.4988001 | I10: =AVERAGE(I5:I8)*100 -> 35.99952004 | J10: =AVERAGE(J5:J8)*100 -> 43.3325334
H11: Lake LVI Score | J11: =IF(OR(ISBLANK(G10),ISBLANK(H10),ISBLANK(I10),ISBLANK(J10)),"",AVERAGE(G10:J10)) -> 40.72077655
A12: Number of Total / Dominant / Co-Dominant Taxa entered | B12: =SUM(COUNTIFS(B16:B2000,{"p","c","d"}))&" / "& COUNTIFS(B16:B2000,"d")&" / "& COUNTIFS(B16:B2000,"c") -> 19 / 1 / 0 | C12: =SUM(COUNTIFS(C16:C2000,{"p","c","d"}))&" / "& COUNTIFS(C16:C2000,"d")&" / "& COUNTIFS(C16:C2000,"c") -> 12 / 1 / 0 | D12: =SUM(COUNTIFS(D16:D2000,{"p","c","d"}))&" / "& COUNTIFS(D16:D2000,"d")&" / "& COUNTIFS(D16:D2000,"c") -> 15 / 1 / 0 | E12: =SUM(COUNTIFS(E16:E2000,{"p","c","d"}))&" / "& COUNTIFS(E16:E2000,"d")&" / "& COUNTIFS(E16:E2000,"c") -> 18 / 1 / 0
A13: Plant Taxa present as selected on the Taxa List Tab
A15: Taxon | B15: ='LVI Taxa List'!C15 -> Segment 1 | C15: ='LVI Taxa List'!D15 -> Segment 4 | D15: ='LVI Taxa List'!E15 -> Segment 7 | E15: ='LVI Taxa List'!F15 -> Segment 10 | F15: Occurrences | G15: Occurrences of LVI Taxon | H15: C of C Score | I15: FLEPPC Status | J15: Wetland Status | K15: Nativity | L15: FLEPPC Code | M15: Wetland Status Code | N15: FL Native | O15: Growth Habit | P15: HERB WOOD
A16: Acer rubrum | B16: P | C16: P | D16: P | E16: P | F16: 4 | G16: 4 | H16: 4.65 | I16: Not Listed | J16: FACW | K16: Native | L16: 3 | M16: 4 | N16: 1 | O16: 6 | P16: 2
A17: Boehmeria cylindrica | B17: P | D17: P | E17: P | F17: 3 | G17: 3 | H17: 5 | I17: Not Listed | J17: OBL | K17: Native | L17: 3 | M17: 5 | N17: 1 | O17: 1 | P17: 1
A18: Cephalanthus occidentalis | B18: P | C18: P | E18: P | F18: 3 | G18: 3 | H18: 5 | I18: Not Listed | J18: OBL | K18: Native | L18: 3 | M18: 5 | N18: 1 | O18: 4 | P18: 2
A19: Cyperus odoratus | B19: P | F19: 1 | G19: 1 | H19: 3 | I19: Not Listed | J19: FACW | K19: Native | L19: 3 | M19: 4 | N19: 1 | O19: 2 | P19: 1
A20: Eichhornia crassipes | B20: D | C20: D | D20: D | E20: D | F20: 4 | G20: 4 | H20: 0 | I20: Category 1 | J20: OBL | K20: Exotic | L20: 1 | M20: 5 | N20: 2 | O20: 1 | P20: 1
A21: Eupatorium capillifolium | B21: P | F21: 1 | G21: 1 | H21: 0.83 | I21: Not Listed | J21: FAC | K21: Native | L21: 3 | M21: 3 | N21: 1 | O21: 1 | P21: 1
A22: Hydrocotyle | B22: P | C22: P | E22: P | F22: 3 | G22: 3 | H22: 2 | I22: Not Listed | J22: FACW | K22: Native | L22: 3 | M22: 4 | N22: 1 | O22: 1 | P22: 1
A23: Ilex cassine | B23: P | C23: P | D23: P | E23: P | F23: 4 | G23: 4 | H23: 6 | I23: Not Listed | J23: OBL | K23: Native | L23: 3 | M23: 5 | N23: 1 | O23: 6 | P23: 2
A24: Lemna | B24: P | D24: P | E24: P | F24: 3 | G24: 3 | H24: 1 | I24: Not Listed | J24: OBL | K24: Native | L24: 3 | M24: 5 | N24: 1 | O24: 1 | P24: 1
A25: Liquidambar styraciflua | D25: P | E25: P | F25: 2 | G25: 2 | H25: 2.5 | I25: Not Listed | J25: FACW | K25: Native | L25: 3 | M25: 4 | N25: 1 | O25: 6 | P25: 2
A26: Ludwigia peruviana | B26: P | E26: P | F26: 2 | G26: 2 | H26: 0 | I26: Category 1 | J26: OBL | K26: Exotic | L26: 1 | M26: 5 | N26: 2 | O26: 1 | P26: 1
A27: Myrica cerifera | B27: P | C27: P | D27: P | E27: P | F27: 4 | G27: 4 | H27: 2 | I27: Not Listed | J27: FAC | K27: Native | L27: 3 | M27: 3 | N27: 1 | O27: 4 | P27: 2
A28: Nyssa sylvatica biflora | B28: P | C28: P | D28: P | F28: 3 | G28: 3 | H28: 7 | I28: Not Listed | J28: OBL | K28: Native | L28: 3 | M28: 5 | N28: 1 | O28: 6 | P28: 2
A29: Osmunda regalis | C29: P | E29: P | F29: 2 | G29: 2 | H29: 7.6 | I29: Not Listed | J29: OBL | K29: Native | L29: 3 | M29: 5 | N29: 1 | O29: 1 | P29: 1
A30: Panicum hemitomon | B30: P | D30: P | E30: P | F30: 3 | G30: 3 | H30: 5.82 | I30: Not Listed | J30: OBL | K30: Native | L30: 3 | M30: 5 | N30: 1 | O30: 2 | P30: 1
A31: Persicaria punctata | B31: P | C31: P | D31: P | E31: P | F31: 4 | G31: 4 | H31: 3 | I31: Not Listed | J31: OBL | K31: Native | L31: 3 | M31: 5 | N31: 1 | O31: 1 | P31: 1
A32: Pinus elliottii | B32: P | C32: P | D32: P | F32: 3 | G32: 3 | H32: 4.21 | I32: Not Listed | K32: Native | L32: 3 | M32: 1 | N32: 1 | O32: 6 | P32: 2
A33: Quercus nigra | C33: P | D33: P | F33: 2 | G33: 2 | H33: 2.5 | I33: Not Listed | J33: FACW | K33: Native | L33: 3 | M33: 4 | N33: 1 | O33: 6 | P33: 2
A34: Sacciolepis striata | B34: P | D34: P | E34: P | F34: 3 | G34: 3 | H34: 5.35 | I34: Not Listed | J34: OBL | K34: Native | L34: 3 | M34: 5 | N34: 1 | O34: 2 | P34: 1
A35: Salvinia minima | B35: P | D35: P | F35: 2 | G35: 2 | H35: 0 | I35: Category 1 | J35: OBL | K35: Exotic | L35: 1 | M35: 5 | N35: 2 | O35: 1 | P35: 1
A36: Taxodium | E36: P | F36: 1 | G36: 1 | H36: 7 | I36: Not Listed | J36: OBL | K36: Native | L36: 3 | M36: 5 | N36: 1 | O36: 6 | P36: 2
A37: Typha | B37: P | E37: P | F37: 2 | G37: 2 | H37: 1 | I37: Not Listed | J37: OBL | K37: Native | L37: 3 | M37: 5 | N37: 1 | O37: 1 | P37: 1
A38: Vitis rotundifolia | B38: P | C38: P | D38: P | E38: P | F38: 4 | G38: 4 | H38: 1.18 | I38: Not Listed | K38: Native | L38: 3 | M38: 1 | N38: 1 | O38: 7 | P38: 1
A39: Woodwardia virginica | E39: P | F39: 1 | G39: 1 | H39: 3.5 | I39: Not Listed | J39: FACW | K39: Native | L39: 3 | M39: 4 | N39: 1 | O39: 1 | P39: 1

Sheet 4.Lake_Observation
B1: Instructions: Fill in All Information in Blue Shaded Cells all other information is auto populated from other sheets.
B2: Lake Observations From DEP Form FD 9000-31: Lake Observation Field Sheet
C4: COUNTY: | F4: ='Site Info'!B8 -> Dixie | S4: WIN STATION ID: | Y4: ='Site Info'!B4&" "&'Site Info'!B5 -> 21FLA 21020065 | AH4: LATITUDE: | AL4: ='Site Info'!B13 -> 30.221694
C5: DATE: | F5: ='Site Info'!B15 -> 2025-07-29 | S5: TIME: | Y5: ='Site Info'!B16 -> 00:00:00 | AH5: LONGITUDE: | AL5: ='Site Info'!B12 -> -82.836306
C6: SURVEY/PROJECT: | J6: ='Site Info'!B19 -> TEST 1 | Q6: SITE NAME AND DESCRIPTION: | W6: ='Site Info'!B2&" "&'Site Info'!B6 -> Low Lake LOWREF
AH7: LAKE SIZE | AL7: ='Site Info'!B10&" "&'Site Info'!B11 -> 
C8: SAMPLING AGENCY: | J8: ='Site Info'!B3 -> Northeast District Biologists | AH8: FIELD ID: | AL8: ='Site Info'!B7 -> 0
C10: WATERSHED / LAKESIDE FEATURES | AB10: Other Land-Use:
D12: PREDOMINANT LAKESIDE LAND-USE (specify relative percent in each category – from GIS ) : | AN12: LANDSCAPE DEVELOPMENT INTENSITY (100 m buffer)
AG13: Other (Specify Above)
C14: Forest/Natural | I14: Silviculture | M14: Field/Pasture | Q14: Agricultural | V14: Residential | Z14: Commercial | AD14: Industrial
AN15: LDI:
AN16: Land Use Source & Year:
C18: Local Watershed Erosion (select one) : | P18: None | T18: Slight | X18: Moderate | AC18: Heavy | AE18: Artificially Impounded
C21: Local Watershed Pollution : | N21: None | T21: Slight | X21: Moderate | AC21: Heavy | AG21: Yes | AK21: No
B23: HABITAT COMPONENTS | M23: OPTIMAL | V23: SUBOPTIMAL | AF23: MARGINAL | AP23: POOR
C24: STORMWATER INPUTS | J24: Stormwater enters system via sheet flow over non-cultivated and/or natural vegetation | T24: Some direct stormwater inputs (ditches, pipes, cultivated vegetation < 10%) but good BMPs in place | AD24: Moderate direct inputs of stormwater (ditches, pipes, cultivated vegetation 11%-50%) but few BMPs in place | AN24: Much direct input of stormwater (ditches, pipes, cultivated vegetation > 51%) and no or ineffective BMPs in place
C25: Enter score below based on scale to right
D27: 2 | J27: 20 | L27: 19 | N27: 18 | P27: 17 | R27: 16 | T27: 15 | V27: 14 | X27: 13 | Z27: 12 | AB27: 11 | AD27: 10 | AF27: 9 | AH27: 8 | AJ27: 7 | AL27: 6 | AN27: 5 | AP27: 4 | AR27: 3 | AT27: 2 | AV27: 1
C28: LAKESIDE ALTERATIONS | J28: Very few man-made structures, roads, or other disturbance adjacent to lake (<10% lakeside affected) | T28: Moderate disturbance visible -structures, roads or other (10%-49% lakeside affected) | AD28: Many structures, roads or other human disturbance visible (50%-70% lakeside affected) | AN28: Highly developed or disturbed (>70% of lakeside affected)
C29: Enter score below based on scale to right
D31: 7 | J31: 20 | L31: 19 | N31: 18 | P31: 17 | R31: 16 | T31: 15 | V31: 14 | X31: 13 | Z31: 12 | AB31: 11 | AD31: 10 | AF31: 9 | AH31: 8 | AJ31: 7 | AL31: 6 | AN31: 5 | AP31: 4 | AR31: 3 | AT31: 2 | AV31: 1
C32: BUFFER ZONE | J32: Expected native vegetation between uplands and littoral zone, greater than 90% of shore with >18 m buffer | T32: 89%-51% of shoreline with >18m buffer or >75% with 10m to 18m buffer | AD32: 50%-30% of shoreline with >18m buffer or 50%-74% with 10m to 18m buffer | AN32: < 29% of shoreline with >18m buffer
C33: Enter score below based on scale to right
D35: 9 | J35: 20 | L35: 19 | N35: 18 | P35: 17 | R35: 16 | T35: 15 | V35: 14 | X35: 13 | Z35: 12 | AB35: 11 | AD35: 10 | AF35: 9 | AH35: 8 | AJ35: 7 | AL35: 6 | AN35: 5 | AP35: 4 | AR35: 3 | AT35: 2 | AV35: 1
C36: WATER / SUBSTRATE / BIOLOGICAL: SAMPLES AND OBSERVATIONS
C38: Water: | AF38: Water Odors: | AN38: Normal
D39: Nutrient Sample Taken? | N39: Yes | R39: No | U39: Preserved? | Z39: Yes | AD39: No | AH39: Normal | AL39: Petroleum | AP39: Other:
D41: Color Sample Taken? | N41: Yes | R41: No | U41: Lot# | AD41: pH<2
D43: Alkalinity Sample Taken? | N43: Yes | R43: No | U43: Exp. Date: | AF43: Water Surface Oils: | AN43: Normal
D45: Water Level | N45: Low | R45: Normal | V45: High | AH45: Sheen/Slick | AM45: Glob | AP45: Other:
C48: Meter | G48: Sample Depth | K48: Temp | N48: pH | Q48: D.O | S48: D.O Sat. | W48: Sp. Cond. | Z48: Salinity | AF48: Water Clarity: | AL48: Clear | AO48: Water Color: | AU48: Clear
C49: Readings: | H49: m | K49: (°C) | N49: (SU) | Q49: (mg/L) | T49: (%) | V49: (µMho/cm) | Z49: (ppt)
C50: Data J Qualified?
C52: Top: | AH52: Opaque | AL52: Turbid | AQ52: Tannic | AU52: Green (Algae)
C54: Mid-Depth: | AH54: Slightly Turbid
AF56: SECCHI DEPTH (M) | AO56: TOTAL DEPTH (M)
C57: Bottom:
C59: Meter ID: | AF59: VOB | AO59: PHOTOS TAKEN?
AK60: Yes | AN60: No | AT60: Yes | AW60: No
C62: Sediment Type: | AF62: Sediment Odors:
S63: Sample Taken? | Z63: Yes | AD63: No
D64: Sandy | H64: Organic fibrous (peaty) | S64: Vegetated | AH64: Normal | AM64: Chemical | AS64: Sewage
D66: Sandy/Silt | H66: Organic smooth (muck) | S66: Other (Specify): | AH66: Anaerobic | AM66: Petroleum
C68: Sediment Oils: | AF68: Water Level Control Mechanisms Present (Weir, Dam, Pumps) :
D70: Normal | H70: Glob | S70: Slick
D72: Sheen | H72: Organic smooth (muck) | S72: Other (Specify): | AH72: Yes | AM72: No | AS72: Don't know
C74: Biological Communities: | V74: Abundance: | AL74: Additional Notes:
C76: LVI Conducted? | Q76: Yes | T76: No | AB76: Absent | AE76: Rare | AF76: Common | AI76: Abundant
V77: Periphyton/Algal mat
C78: Phytoplankton Sample Taken? | Q78: Yes | T78: No
V79: Nuisance Plants
C80: Sampled Preserved? | Q80: Yes | T80: No
V81: Submersed Plants
C82: Lot#: | L82: Exp Date:
V83: Exotic Apple Snails
C84: Algal Bloom/Algal ID Sample Taken? | Q84: Yes | T84: No
C86: Active Vegetation Mgmt? | M86: Yes | P86: No | S86: Don't Know
B88: Weather Conditions:
C90: Sampling Team: | I90: =IF('Site Info'!B17="","-",'Site Info'!B17)&", "&IF('Site Info'!B18="","",'Site Info'!B18) -> Test Testerson, | AL90: Date: | AO90: =F5 -> 2025-07-29

Sheet 5. Lake HA
B2: Lake Habitat Assessment
B3: DEP Form FD 9000-6: Lake Habitat Assessment Field Sheet
B4: WIN Station ID: | D4: Date | J4: Lake Name | T4: Field ID
B5: ='Site Info'!B4&" "&'Site Info'!B5 -> 21FLA 21020065 | D5: ='Site Info'!B16 -> 00:00:00 | J5: =IF('Site Info'!B2="","-",'Site Info'!B2) -> Low Lake | T5: ='Site Info'!B7 -> 0
B6: Eco-Region: | D6: County: | F6: ='Site Info'!B8 -> Dixie | J6: Sampling Location/Description: | N6: ='Site Info'!B6 -> LOWREF | T6: Lake Size: | V6: ='Site Info'!B10&" "&'Site Info'!B11 -> 
B7: ='Site Info'!B24 -> 0 | D7: No surface inflow or outflow present, very long water residence time, groundwater seepage dominates | J7: Surface water inflow present, but flow is rare, moderate to long water residence time | O7: Surface water inflow and outflow present (or outflow only), sometimes with visible flow, short water residence time | T7: Impounded, hydrology of system artificially controlled
B8: Hydrology
B12: Color | D12: Very clear, uncolored water (benthic sampling appropriate) | J12: Water somewhat tannin stained (benthic sampling appropriate) | O12: Dark, discolored water (water color 20 PCU or higher) | T12: Visibility extremely reduced due to high color
D15: Optimal | J15: Suboptimal | O15: Marginal | T15: Poor
B16: Secchi | D16: Secchi >3 m Secchi(m) | J16: 3 | K16: 2.6 | L16: 2.2 | M16: 1.8 | N16: 1.4 | O16: 1 | P16: 0.9 | Q16: 0.8 | R16: 0.7 | S16: 0.6 | T16: 0.5 | U16: 0.4 | V16: 0.3 | W16: 0.2 | X16: 0.1
B17: 15 | D17: VOB | E17: 20 | F17: 19 | G17: 18 | H17: 17 | I17: 16 | J17: 15 | K17: 14 | L17: 13 | M17: 12 | N17: 11 | O17: 10 | P17: 9 | Q17: 8 | R17: 7 | S17: 6 | T17: 5 | U17: 4 | V17: 3 | W17: 2 | X17: 1
B18: Vegetation Quality Enter score below based on scale to right | D18: Diverse, expected native vegetation (emergent or submersed), less than 5% nuisance taxa | J18: Mostly expected native plants, but moderate growths (6%-20% of lake) of nuisance macrophytes, or more than 50% of lake covered with plants | O18: Large masses (21%- 40%) of nuisance macrophytes (e.g., Hydrilla, hyacinth, cattail, etc.) or algal mats | T18: Lake choked (>40%) with nuisance macrophytes (duck-weed, hyacinth, etc.) or algal mats, or few plants present at all (e.g., plants removed)
B19: 10 | D19: 20 | F19: 19 | G19: 18 | H19: 17 | I19: 16 | J19: 15 | K19: 14 | L19: 13 | M19: 12 | N19: 11 | O19: 10 | P19: 9 | Q19: 8 | R19: 7 | S19: 6 | T19: 5 | U19: 4 | V19: 3 | W19: 2 | X19: 1
B20: Stormwater Inputs Enter score below based on scale to right | D20: Stormwater enters system via sheet flow over non-cultivated and/or natural vegetation | J20: Some direct stormwater inputs (ditches, pipes, cultivated vegetation < 10%) but good BMPs in place | O20: Moderate direct inputs of stormwater (ditches, pipes, cultivated vegetation 11%-50%) but few BMPs in place | T20: Much direct input of stormwater (ditches, pipes, cultivated vegetation > 51%) and no or ineffective BMPs in place
B21: 7 | D21: 20 | F21: 19 | G21: 18 | H21: 17 | I21: 16 | J21: 15 | K21: 14 | L21: 13 | M21: 12 | N21: 11 | O21: 10 | P21: 9 | Q21: 8 | R21: 7 | S21: 6 | T21: 5 | U21: 4 | V21: 3 | W21: 2 | X21: 1
B22: Bottom Substrate Quality Enter score below based on scale to right | D22: Diverse mixture of sand, detritus, with small amounts of CPOM/mud/muck. SAV may be present | J22: Mixture of sand or clay and detritus with higher % CPOM/mud/muck content. SAV may be present | O22: Moderate layer of CPOM/mud/muck, or hardpacked sand only, or moderate algal growth (mats or Chara) on bottom | T22: Thick deposits of CPOM, or fine detritus and anaerobic muck/mud/silt, or algal growth or nuisance plants (Hydrilla) cover bottom
B23: 8 | D23: 20 | F23: 19 | G23: 18 | H23: 17 | I23: 16 | J23: 15 | K23: 14 | L23: 13 | M23: 12 | N23: 11 | O23: 10 | P23: 9 | Q23: 8 | R23: 7 | S23: 6 | T23: 5 | U23: 4 | V23: 3 | W23: 2 | X23: 1
B24: Lakeside Adverse Human Alternations Enter score below based on scale to right | D24: Very few man-made structures, roads, or other disturbance adjacent to lake (<10%) | J24: Moderate disturbance visible (structures, roads or other), 10%-49% lakeside affected | O24: Many structures, roads or other human disturbance visible (50%-70%) lakeside affected) | T24: Highly developed or disturbed (>70% of lakeside affected)
B25: 10 | D25: 20 | F25: 19 | G25: 18 | H25: 17 | I25: 16 | J25: 15 | K25: 14 | L25: 13 | M25: 12 | N25: 11 | O25: 10 | P25: 9 | Q25: 8 | R25: 7 | S25: 6 | T25: 5 | U25: 4 | V25: 3 | W25: 2 | X25: 1
B26: Upland Buffer Zone Enter score below based on scale to right | D26: Expected native vegetation between uplands and littoral zone, greater than 90% of shore with >18 m buffer | J26: 89%-51% of shoreline with >18m buffer or >75% with 10m to 18m buffer | O26: 50%-30% of shoreline with >18m buffer or 50%-74% with 10m to 18m buffer | T26: < 29% of shoreline with >18m buffer
B27: 10 | D27: 20 | F27: 19 | G27: 18 | H27: 17 | I27: 16 | J27: 15 | K27: 14 | L27: 13 | M27: 12 | N27: 11 | O27: 10 | P27: 9 | Q27: 8 | R27: 7 | S27: 6 | T27: 5 | U27: 4 | V27: 3 | W27: 2 | X27: 1
B28: Adverse Watershed Land Use Enter score below based on scale to right | D28: Score the potential effects from adverse human land uses, based on a continuum of amount and type, with least to most adverse as follows: Native vegetation, Silviculture, Pasture or Citrus, Low Density Residential, Row Crops, Commercial, High Density Residential, Urban, Industrial
B29: 8 | D29: 20 | F29: 19 | G29: 18 | H29: 17 | I29: 16 | J29: 15 | K29: 14 | L29: 13 | M29: 12 | N29: 11 | O29: 10 | P29: 9 | Q29: 8 | R29: 7 | S29: 6 | T29: 5 | U29: 4 | V29: 3 | W29: 2 | X29: 1
B31: Total Score | C31: Score Category | D31: Comments:
B32: =IF(B17="VOB",(SUM(B29,B27,B25,B23,B21,B19)+20),SUM(B17,B19,B21,B23,B25,B27,B29)) -> 68 | C32: =IF(B32=0,"-",IF(B32<35,"Poor",IF(B32<70,"Marginal",IF(B32<105,"Suboptimal","Optimal")))) -> Marginal
B33: Analysis date: | D33: Analyst(s):
B34: ='Site Info'!B16 -> 00:00:00 | D34: =IF('Site Info'!B17="","-",'Site Info'!B17)&", "&IF('Site Info'!B18="","",'Site Info'!B18) -> Test Testerson,

Sheet 6.Dominat Taxa Photos
A1: FDEP SOP LVI 1100 3.2.8: Collect specimens of dominant and co-dominant taxa from groups which typically require further examination for identification (e.g. grasses, submersed plants, “look-alike” species) for verification in the laboratory or by an independent taxonomist. Take photos of dominant and co-dominant taxa which are easily identified and frequently encountered (e.g.Taxodium spp., Nymphaea odorata) and verify the ID; these do not need to be collected for verification.
A2: Lake Section | B2: Dominant/Co-dominant Taxa | C2: Co-dominant Taxa
A3: ='LVI Calculator'!B15 -> Segment 1 | B3: =_xlfn.XLOOKUP("d",'LVI Calculator'!$B$16:$B$2000,'LVI Calculator'!$A$16:$A$2000,_xlfn.XLOOKUP("c",'LVI Calculator'!$B$16:$B$2000,'LVI Calculator'!$A$16:$A$2000,"Dominant Taxa Not Identified")) -> Eichhornia crassipes | C3: =_xlfn.XLOOKUP("c",'LVI Calculator'!$B$16:$B$2000,'LVI Calculator'!$A$16:$A$2000,"No Co-Dominant Taxa Found",0,-1) -> No Co-Dominant Taxa Found
A6: ='LVI Calculator'!C15 -> Segment 4 | B6: =_xlfn.XLOOKUP("d",'LVI Calculator'!$C$16:$C$2000,'LVI Calculator'!$A$16:$A$2000,_xlfn.XLOOKUP("c",'LVI Calculator'!$C$16:$C$2000,'LVI Calculator'!$A$16:$A$2000,"Dominant Taxa Not Identified")) -> Eichhornia crassipes | C6: =_xlfn.XLOOKUP("c",'LVI Calculator'!$C$16:$C$2000,'LVI Calculator'!$A$16:$A$2000,"No Co-Dominant Taxa Found",0,-1) -> No Co-Dominant Taxa Found
A9: ='LVI Calculator'!D15 -> Segment 7 | B9: =_xlfn.XLOOKUP("d",'LVI Calculator'!$D$16:$D$2000,'LVI Calculator'!$A$16:$A$2000,_xlfn.XLOOKUP("c",'LVI Calculator'!$D$16:$D$2000,'LVI Calculator'!$A$16:$A$2000,"Dominant Taxa Not Identified")) -> Eichhornia crassipes | C9: =_xlfn.XLOOKUP("c",'LVI Calculator'!$D$16:$D$2000,'LVI Calculator'!$A$16:$A$2000,"No Co-Dominant Taxa Entered",0,-1) -> No Co-Dominant Taxa Entered
A12: ='LVI Calculator'!E15 -> Segment 10 | B12: =_xlfn.XLOOKUP("d",'LVI Calculator'!$E$16:$E$2000,'LVI Calculator'!$A$16:$A$2000,_xlfn.XLOOKUP("c",'LVI Calculator'!$E$16:$E$2000,'LVI Calculator'!$A$16:$A$2000,"Dominant Taxa Not Identified")) -> Eichhornia crassipes | C12: =_xlfn.XLOOKUP("c",'LVI Calculator'!$E$16:$E$2000,'LVI Calculator'!$A$16:$A$2000,"No Co-Dominant Taxa Found",0,-1) -> No Co-Dominant Taxa Found

Sheet 7.ExtenalBioFormat
A1: WIN ORGANIZATION ID | B1: WIN STATION NUMBER | C1: STATION NAME | D1: STATION DESCRIPTION | E1: PRIMARY TYPE | F1: WATERBODY NAME | G1: LATITUDE | H1: LONGITUDE | I1: SAMPLE DATE | J1: METRIC | K1: RESULT | L1: FIELD COMMENT | M1: COLLECTOR | N1: METRIC PROFICIENCY | O1: SAMPLING ENTITY | P1: LAB NAME
A2: ='Site Info'!B4 -> 21FLA | B2: ='Site Info'!B5 -> 21020065 | C2: ='Site Info'!B7 -> 0 | D2: ='Site Info'!B8 -> Dixie | E2: Lake | F2: ='Site Info'!B2 -> Low Lake | G2: ='Site Info'!B13 -> 30.221694 | H2: ='Site Info'!B12 -> -82.836306 | I2: ='Site Info'!$B$15 -> 2025-07-29 | J2: Habitat Assessment Score | K2: ='5. Lake HA'!B32 -> 68 | L2: ='5. Lake HA'!F31 -> 0 | M2: =IF('Site Info'!B17=0,"-",'Site Info'!B17&" & "&'Site Info'!B18) -> Test Testerson & | N2: N/A | O2: ='Site Info'!B3 -> Northeast District Biologists | P2: na
A3: ='Site Info'!B4 -> 21FLA | B3: ='Site Info'!B5 -> 21020065 | C3: ='Site Info'!B7 -> 0 | D3: ='Site Info'!B8 -> Dixie | E3: Lake | F3: ='Site Info'!B2 -> Low Lake | G3: ='Site Info'!B13 -> 30.221694 | H3: ='Site Info'!B12 -> -82.836306 | I3: ='Site Info'!$B$15 -> 2025-07-29 | J3: LVI_2012_Avg | K3: ='LVI Calculator'!J11 -> 40.72077655 | L3: ='LVI Calculator'!K3 -> 0 | M3: =IF('Site Info'!B17=0,"-",'Site Info'!B17&" & "&'Site Info'!B18) -> Test Testerson & | N3: =IF(OR('Site Info'!C17=TRUE,'Site Info'!C18=TRUE),"Yes") -> Yes | O3: ='Site Info'!B3 -> Northeast District Biologists | P3: na
A5: ↑ All values above are auto populated from the values entered or calculated on the other worksheets. There is no need to enter anything on this sheet! | F5: Submitting Bioassessment Data Data providers who would like to submit LVI data to help support the Department's Impaired Waters assessment can copy the auto calculated values in this worksheet into the Watershed Assessment Sections Bioassessment Data Template. The department is requesting external data providers who would like to submit applicable bioassessment data to help support the department's Impaired Waters assessment. Please download and complete the Bioassessment Data Template, available as a Microsoft Excel worksheet (.xlsx). Once the template has been completed with the required information, please submit the worksheet and any supporting documentation (field sheets, photos, etc.) by email to Jessica Mostyn.​​​​​​​​​​​​ Entities submitting data to DEP must meet the applicable bioassessment proficiency demonstrations set forth on the Bioassessment Training, Evaluation and Quality Assurance Web Page, follow the department's Quality Assurance requirements for field activities as codified in Chapter 62-160, Florida Administrative Code (F.A.C.), and the incorporated DEP Standard Operating Procedures. For external bioassessment data to be considered as part of the assessment, data providers must be in the applicable Active status for LVI, BioRecon, SCI and/or Habitat Assessment certification at the time of sample collection. While the online RPS and LVS tests are not required, because there are currently no certifications for these methods, taking the online tests are highly recommended to show proficiency.
F6: References
F7: Bioassessment Data Template | G7: http://publicfiles.dep.state.fl.us/DEAR/DEARweb/WAS/Bio_Data_Template_2.0.xlsx
F8: Jessica Mostyn | G8: Jessica.Mostyn@dep.state.fl.us
D9: Bioassessment Training, Evaluation and Quality Assurance Web Page: | G9: https://floridadep.gov/dear/bioassessment/content/bioassessment-training-evaluation-and-quality-assurance
